Workbook

Sheet 1.DADES
A1: DIMENSIONAMENT INTERCANVIADOR DE TERRA - AIRE | DITA
A3: 1. INFORMACIÓ DEL PROJECTE
A5: Dades Generals
A8: Ref.Projecte
A10: Projecte
A12: Localització
A16: Propietat
A18: Direcció
A22: Tècnic
A25: Descripció

Sheet 2.CLIMA
A1: DIMENSIONAMENT INTERCANVIADOR DE TERRA - AIRE | DITA
A3: 2. CLIMA
A5: Dades Climàtiques anuals
H9: Capitals | I9: Barcelona
H11: Temp. Mitja
H12: Gener | I12: 9.4 | K12: Latitud
H13: Febrer | I13: 9.9 | K13: =(VLOOKUP($I$9,TAULES!$A$4:$AO$55,15)) -> 41.24
H14: Març | I14: 12.3 | K14: Altitud
H15: Abril | I15: 14.6 | K15: =(VLOOKUP($I$9,TAULES!$A$4:$AO$55,14)) -> 95
H16: Maig | I16: 17.7 | K16: Tmin: Temperatura ambient mínima
H17: Juny | I17: 21.6 | K17: =VLOOKUP($I$9,TAULES!$A$4:$AO$55,20) -> 2 | L17: ºC
H18: Juliol | I18: 24.4 | K18: Tmax: Temperatura ambient màxima
H19: Agost | I19: 24.2 | K19: =VLOOKUP($I$9,TAULES!$A$4:$AO$55,19) -> 31 | L19: ºC
H20: Setembre | I20: 21.7 | K20: Tm: Temperatura mitja anual
H21: Octubre | I21: 17.5 | K21: =VLOOKUP($I$9,TAULES!$A$4:$AO$55,40) -> 16.41666667 | L21: ºC
H22: Novembre | I22: 13.5 | K22: HR: Humitat Relativa
H23: Desembre | I23: 10.2 | K23: =VLOOKUP($I$9,TAULES!$A$4:$AO$55,18) -> 68 | L23: %

Sheet 3.TERRENY
A1: DIMENSIONAMENT INTERCANVIADOR DE TERRA - AIRE | DITA
A3: 3. TERRENY
A5: Selecció del tipus de terreny
I10: Tipus Terreny:
I12: 07. Llims argilosos
I16: ce Calor específica | K16: =+LOOKUP($I$12,PARÀMETRES!B5:B16,PARÀMETRES!C5:C16) -> 1340 | L16: J/kgK
I19: λ Conductivitat | K19: =+LOOKUP($I$12,PARÀMETRES!B5:B16,PARÀMETRES!D5:D16) -> 1.49 | L19: W/mK
I22: ρ Densitat | K22: =+LOOKUP($I$12,PARÀMETRES!B5:B16,PARÀMETRES!E5:E16) -> 1800 | L22: kg/m3
I25: α Difusivitat | K25: =(K19/K16*K22) -> 2.001492537 | L25: m2/s

Sheet 4.CONDUCTES
A1: DIMENSIONAMENT INTERCANVIADOR DE TERRA - AIRE | DITA
A3: 4. CONDUCTE
A5: Dades conducte intercanviador de calor
I10: Tipus Conducte:
I12: 01. Polipropilè
I16: ce Calor específica | K16: =+LOOKUP($I$12,Conducte,PARÀMETRES!C21:C26) -> 1800 | L16: J/kgK
I19: λ Conductivitat | K19: =+LOOKUP($I$12,Conducte,PARÀMETRES!D21:D26) -> 0.28 | L19: W/mK
I22: ρ Densitat | K22: =+LOOKUP($I$12,Conducte,PARÀMETRES!E21:E26) -> 990 | L22: kg/m³
C26: z | D26: Profunditat | E26: 2 | G26: m
C28: L | D28: Longitud | E28: 30 | G28: m
C30: Øi | D30: Diàmetre | E30: 0.4 | G30: m
C32: e | D32: Gruix | E32: =1.5/100 -> 0.015 | G32: m

Sheet 5.CÀLCUL
A1: DIMENSIONAMENT INTERCANVIADOR DE TERRA - AIRE | DITA
A3: 5. CÀLCUL
J8: Te | K8: Temperatura entrada | M8: 31 | N8: ºC
J10: Ta | K10: Temperatura ambient anual | M10: ='2.CLIMA'!K21+('2.CLIMA'!K19-'2.CLIMA'!K21)*COS((2*PI()*((365*3600)/PARÀMETRES!D38))) -> 30.50308497 | N10: ºC
J12: Tg | K12: Temperatura terreny anual | M12: =GRÀFICA!F20 -> 16.41666667 | N12: ºC
J14: Tg (z) | K14: Temp. terreny a profunditat z | M14: =('2.CLIMA'!K21+(M8-'2.CLIMA'!K21)*EXP(-('4.CONDUCTES'!E26/PARÀMETRES!D41))*COS((2*PI()*(1/PARÀMETRES!D38))-('4.CONDUCTES'!E26/PARÀMETRES!D41))) -> 20.95283811 | N14: ºC
K17: Rcd | L17: Resistència Conducció | M17: =LN(('4.CONDUCTES'!E30+(2*'4.CONDUCTES'!E32))/'4.CONDUCTES'!E30)*('4.CONDUCTES'!E30+'4.CONDUCTES'!E32+'4.CONDUCTES'!E32)/(2*'4.CONDUCTES'!K19) -> 0.05553193657 | N17: m²K/W
K19: Rcv | L19: Resistència Convecció | M19: =('4.CONDUCTES'!E30)/(PARÀMETRES!D36*PARÀMETRES!D32) -> 0.2497459596 | N19: m²K/W
K21: Rg | L21: Resistència Terreny | M21: =(LN(('4.CONDUCTES'!E30+2*('4.CONDUCTES'!E32+PARÀMETRES!D40))/('4.CONDUCTES'!E30+(2*'4.CONDUCTES'!E32)))*('4.CONDUCTES'!E30+'4.CONDUCTES'!E32+'4.CONDUCTES'!E32))/(2*'3.TERRENY'!K19) -> 0.06838139533 | N21: m²K/W
K23: Ut | L23: Transmitància Total | M23: =1/(M17+M19+M21) -> 2.676234802 | N23: W/m²K
C24: V | D24: Volum | E24: 1200 | I24: m³
C26: ra | D26: Renovacions | E26: 1 | G26: Persones | H26: 5 | I26: pers
C28: Qv | D28: Cabal | E28: 01. Local | H28: =+LOOKUP($E$28,PARÀMETRES!B47:D51,PARÀMETRES!D47:D51) -> 1200 | I28: m³/h | K28: Ts | L28: Temperatura sortida | M28: =M14-(M14-M8)*EXP(-((3600*M23*PI()*'4.CONDUCTES'!E30*'4.CONDUCTES'!E28)/(PARÀMETRES!D30*PARÀMETRES!D31*'5.CÀLCUL'!H28))) -> 28.77385309 | N28: ºC
C30: v | D30: Velocitat | E30: 1 | I30: m/s

Sheet PARÀMETRES (hidden)
A3: TERRENY
B4: Terreny | C4: Calor Específica (J/KgK) | D4: Conductivitat (W/mk) | E4: Densitat (kg/m3)
B5: 01. Calcària | C5: 2230 | D5: 0.71 | E5: 1670
B6: 02. Sorra | C6: 1390 | D6: 0.93 | E6: 1780
B7: 03. Sorra seca | C7: 920 | D7: 0.7 | E7: 1500
B8: 04. Terreny sorrenc | C8: 1650 | D8: 1.24 | E8: 1520
B9: 05. Gres | C9: 710 | D9: 1.87 | E9: 2250
B10: 06. Argila | C10: 880 | D10: 1.28 | E10: 1500
B11: 07. Llims argilosos | C11: 1340 | D11: 1.49 | E11: 1800
B12: 08. Terreny argilenc | C12: 2850 | D12: 2.3 | E12: 1650
B13: 09. Terreny argilenc humit | C13: 1340 | D13: 1.4 | E13: 1800
B14: 10. Grava seca | C14: 909 | D14: 0.5 | E14: 1650
B15: 11. Terreny sec | C15: 840 | D15: 0.87 | E15: 2022
B16: 12. Terra lleugerament seca | C16: 840 | D16: 0.35 | E16: 1442
A19: CONDUCTE
B20: Material conducte | C20: Calor Específica (J/KgK) | D20: Conductivitat (W/mk) | E20: Densitat (kg/m3)
B21: 01. Polipropilè | C21: 1800 | D21: 0.28 | E21: 990
B22: 02. Polietilè TPC | C22: 1800 | D22: 0.5 | E22: 980
B23: 03. Gres vitrificat | C23: 1000 | D23: 1.04 | E23: 2400
B24: 04. PVC | C24: 1024 | D24: 0.16 | E24: 1379
B25: 05. Formigó | C25: 1000 | D25: 2 | E25: 2500
B26: 06. Ferro | C26: 550 | D26: 40 | E26: 7100
A29: PARAMETRES
B30: ρa: | C30: Densitat aire | D30: 1.2 | E30: kg/m3
B31: ce: | C31: Calor específica aire | D31: 1007 | E31: J/kgK
B32: λa: | C32: Conductivitat aire | D32: 0.026 | E32: W/mk
B33: mu: | C33: Resistència fregament | D33: 1.848e-05
B34: Pr: | C34: Núm. Prand | D34: 0.71
B35: Re: | C35: Núm. Reynolds | D35: =('5.CÀLCUL'!E30*'4.CONDUCTES'!E30*D30)/(D33) -> 25974.02597
B36: Nu: | C36: Núm. Nusselt | D36: =IF(D35<3000,3.66,0.0214*((D35^0.8)-100)*(D34^0.4)) -> 61.60105817
B37: t: | C37: Temps ús anual | D37: =3600*365*5 -> 6570000 | E37: s
B38: to: | C38: 1 any | D38: =365*24*60*60 -> 31536000 | E38: s
B39: ξ: | C39: Profunditat tèrmica tub | D39: ='4.CONDUCTES'!E26/'3.TERRENY'!K25 -> 0.9992542878
B40: ɗ: | C40: Profunditat penetració | D40: =SQRT(('3.TERRENY'!K19*24*3600)/(PI()*'3.TERRENY'!K22*'3.TERRENY'!K16)) -> 0.1303426113 | E40: m (diària)
B41: ɗ: | C41: Profunditat penetració | D41: =SQRT((PARÀMETRES!D38*'3.TERRENY'!K19)/('3.TERRENY'!K16*'3.TERRENY'!K22*PI())) -> 2.490192092 | E41: m (anual)
A45: CABALS
B46: Tipus | C46: Cabal unitari | D46: Cabal total
B47: 01. Local | C47: ='5.CÀLCUL'!$E$24*'5.CÀLCUL'!$E$26 -> 1200 | D47: =C47 -> 1200
B48: 02. IDA 1 | C48: =20*3.6 -> 72 | D48: =C48*'5.CÀLCUL'!$H$26 -> 360
B49: 03. IDA 2 | C49: =12.5*3.6 -> 45 | D49: =C49*'5.CÀLCUL'!$H$26 -> 225
B50: 04. IDA 3 | C50: =8*3.6 -> 28.8 | D50: =C50*'5.CÀLCUL'!$H$26 -> 144
B51: 05. IDA 4 | C51: =5*3.6 -> 18 | D51: =C51*'5.CÀLCUL'!$H$26 -> 90

Sheet TAULES (hidden)
A1: 1 | B1: 2 | C1: 3 | D1: 4 | E1: 5 | F1: 6 | G1: 7 | H1: 8 | I1: 9 | J1: 10 | K1: 11 | L1: 12 | M1: 13 | N1: 14 | O1: 15 | P1: 16 | Q1: 17 | R1: 18 | S1: 19 | T1: 20 | U1: 21 | V1: 22 | W1: 23 | X1: 24 | Y1: 25 | Z1: 26 | AA1: 27 | AB1: 28 | AC1: 29 | AD1: 30 | AE1: 31 | AF1: 32 | AG1: 33 | AH1: 34 | AI1: 35 | AJ1: 36 | AK1: 37 | AL1: 38 | AM1: 39 | AN1: 40 | AO1: 41 | AP1: 42 | AQ1: 43 | AR1: 44 | AS1: 45 | AT1: 46 | AU1: 47 | AV1: 48 | AW1: 49 | AX1: 50 | AY1: 51 | AZ1: 52 | BA1: 53 | BB1: 54 | BC1: 55 | BD1: 56 | BE1: 57 | BF1: 58 | BG1: 59 | BH1: 60 | BI1: 61 | BJ1: 62 | BK1: 63 | BL1: 64 | BM1: 65 | BN1: 66 | BO1: 67 | BP1: 68 | BQ1: 69
B2: RADIACIÓ HORIZONTAL [kJ/m2/día] | N2: ALTITUD [m] | O2: LATITUD [ º , ' ] | P2: LATITUD [ º ] | Q2: VARIACIÓ DIURNA [ºC] | R2: HUMITAT RELATIVA [%] | S2: TEMPERATURA MÀXIMA ESTIU [ºC] | T2: TEMPERATURA MÍNIMA HIVERN [ºC] | U2: TEMPERATURA AMBIENT (durant las hores de sol ) [ºC] | AG2: GRAUS DIA NOV./MAR. | AH2: GRAUS DIA ANUAL | AI2: DIRECCIÓ DEL VENT | AJ2: VELOCITAT DEL VENT [m/s] | AK2: TEMPERATURA AIGUA XARXA [ºC] | AL2: TEMPERATURA AMB. MÍNIMA HISTÒRICA [ºC] | AN2: TEMPERATURA AMB. MITJA ANUAL [ºC] | AO2: ZONA CLIMÁTICA | BD2: RADIACIÓN HORIZONTAL [Wh/m2/día] | BQ2: FUENTE (Datos de Radiación Horizontal)
B3: Gener | C3: Febrer | D3: Març | E3: Abril | F3: Maig | G3: Juny | H3: Juliol | I3: Agost | J3: Setembre | K3: Octubre | L3: Novembre | M3: Desembre | U3: Gener | V3: Febrer | W3: Març | X3: Abril | Y3: Maig | Z3: Juny | AA3: Juliol | AB3: Agost | AC3: Setembre | AD3: Octubre | AE3: Novembre | AF3: Desembre | AP3: Provincia | AQ3: ENE | AR3: FEB | AS3: MAR | AT3: ABR | AU3: MAY | AV3: JUN | AW3: JUL | AX3: AGO | AY3: SEP | AZ3: OCT | BA3: NOV | BB3: DIC | BC3: AÑO | BD3: Enero | BE3: Febrero | BF3: Marzo | BG3: Abril | BH3: Mayo | BI3: Junio | BJ3: Julio | BK3: Agosto | BL3: Septiembre | BM3: Octubre | BN3: Noviembre | BO3: Diciembre
A4: Albacete | B4: 6700 | C4: 10500 | D4: 15000 | E4: 19200 | F4: 21200 | G4: 25100 | H4: 26700 | I4: 23200 | J4: 18800 | K4: 12400 | L4: 8400 | M4: 6400 | N4: 686 | O4: 39 | P4: 39 | Q4: 18 | R4: 36 | S4: 35 | T4: -7 | U4: 4.2 | V4: 5.6 | W4: 9 | X4: 11 | Y4: 15.3 | Z4: 21.6 | AA4: 24.1 | AB4: 23.8 | AC4: 17.8 | AD4: 13.7 | AE4: 8.7 | AF4: 5.2 | AG4: 1247.6 | AH4: 1377.4 | AI4: O | AJ4: 12 | AK4: 10 | AL4: -23 | AM4: Albacete | AN4: =(SUM(U4:AF4))/12 -> 13.33333333 | AO4: D | AP4: ÁLAVA | AQ4: 7 | AR4: 7 | AS4: 11 | AT4: 12 | AU4: 15 | AV4: 19 | AW4: 21 | AX4: 21 | AY4: 19 | AZ4: 15 | BA4: 10 | BB4: 7 | BC4: 13.7 | BD4: =B4/3.6 -> 1861.111111 | BE4: =C4/3.6 -> 2916.666667 | BF4: =D4/3.6 -> 4166.666667 | BG4: =E4/3.6 -> 5333.333333 | BH4: =F4/3.6 -> 5888.888889 | BI4: =G4/3.6 -> 6972.222222 | BJ4: =H4/3.6 -> 7416.666667 | BK4: =I4/3.6 -> 6444.444444 | BL4: =J4/3.6 -> 5222.222222 | BM4: =K4/3.6 -> 3444.444444 | BN4: =L4/3.6 -> 2333.333333 | BO4: =M4/3.6 -> 1777.777778 | BP4: =AJ4*1000/3600 -> 3.333333333 | BQ4: Centro de Estudios de la Energía (Ministerio de Industria y Energía)
A5: Alicante | B5: 8500 | C5: 12000 | D5: 16300 | E5: 18900 | F5: 23100 | G5: 24800 | H5: 25800 | I5: 22500 | J5: 18300 | K5: 13600 | L5: 9800 | M5: 7600 | N5: 7 | O5: 38.21 | P5: 38.35 | Q5: 13 | R5: 60 | S5: 31 | T5: 2 | U5: 11 | V5: 11.8 | W5: 14 | X5: 15.9 | Y5: 19 | Z5: 22.8 | AA5: 25.5 | AB5: 26.1 | AC5: 23.7 | AD5: 19.3 | AE5: 15.2 | AF5: 12 | AG5: 338.2 | AH5: 338.2 | AI5: SE | AJ5: 9 | AK5: 10 | AL5: -5 | AM5: Alicante | AN5: =(SUM(U5:AF5))/12 -> 18.025 | AO5: A | AP5: ALBACETE | AQ5: 6 | AR5: 8 | AS5: 11 | AT5: 13 | AU5: 17 | AV5: 22 | AW5: 26 | AX5: 26 | AY5: 22 | AZ5: 16 | BA5: 11 | BB5: 7 | BC5: 15.4 | BD5: 2361.111111 | BE5: 3333.333333 | BF5: 4527.777778 | BG5: 5250 | BH5: 6416.666667 | BI5: 6888.888889 | BJ5: 7166.666667 | BK5: 6250 | BL5: 5083.333333 | BM5: 3777.777778 | BN5: 2722.222222 | BO5: 2111.111111 | BP5: 2.5 | BQ5: Centro de Estudios de la Energía (Ministerio de Industria y Energía)
A6: Almería | B6: 8900 | C6: 12200 | D6: 16400 | E6: 19600 | F6: 23100 | G6: 24600 | H6: 25300 | I6: 22500 | J6: 18500 | K6: 13900 | L6: 10000 | M6: 8000 | N6: 65 | O6: 36.51 | P6: 36.85 | Q6: 8 | R6: 70 | S6: 30 | T6: 5 | U6: 11.7 | V6: 11.8 | W6: 14.1 | X6: 16.1 | Y6: 18.4 | Z6: 22 | AA6: 24.7 | AB6: 25.3 | AC6: 23.4 | AD6: 19.4 | AE6: 15.6 | AF6: 12.8 | AG6: 207.9 | AH6: 207.9 | AI6: OSO | AJ6: 9 | AK6: 12 | AL6: -1 | AM6: Almería | AN6: 17.94166667 | AO6: A | AP6: ALICANTE | AQ6: 13 | AR6: 14 | AS6: 16 | AT6: 18 | AU6: 21 | AV6: 25 | AW6: 28 | AX6: 28 | AY6: 26 | AZ6: 21 | BA6: 17 | BB6: 14 | BC6: 20.1 | BD6: 2472.222222 | BE6: 3388.888889 | BF6: 4555.555556 | BG6: 5444.444444 | BH6: 6416.666667 | BI6: 6833.333333 | BJ6: 7027.777778 | BK6: 6250 | BL6: 5138.888889 | BM6: 3861.111111 | BN6: 2777.777778 | BO6: 2222.222222 | BP6: 2.5 | BQ6: Centro de Estudios de la Energía (Ministerio de Industria y Energía)
A7: Ávila | B7: 6000 | C7: 9100 | D7: 13500 | E7: 17700 | F7: 19400 | G7: 22300 | H7: 26300 | I7: 25300 | J7: 18800 | K7: 11200 | L7: 6900 | M7: 5200 | N7: 1126 | O7: 40.39 | P7: 40.65 | Q7: 17 | R7: 41 | S7: 30 | T7: -6 | U7: 2.4 | V7: 3.3 | W7: 6.3 | X7: 8.7 | Y7: 12.2 | Z7: 16.4 | AA7: 20 | AB7: 19.8 | AC7: 16.3 | AD7: 10.6 | AE7: 6 | AF7: 3.2 | AG7: 1672.6 | AH7: 2127.2 | AI7: NO | AJ7: 11 | AK7: 10 | AL7: -21 | AM7: Avila | AN7: 10.43333333 | AO7: E | AP7: ALMERÍA | AQ7: 15 | AR7: 15 | AS7: 16 | AT7: 18 | AU7: 21 | AV7: 24 | AW7: 27 | AX7: 28 | AY7: 26 | AZ7: 22 | BA7: 18 | BB7: 16 | BC7: 20.5 | BD7: 1666.666667 | BE7: 2527.777778 | BF7: 3750 | BG7: 4916.666667 | BH7: 5388.888889 | BI7: 6194.444444 | BJ7: 7305.555556 | BK7: 7027.777778 | BL7: 5222.222222 | BM7: 3111.111111 | BN7: 1916.666667 | BO7: 1444.444444 | BP7: 3.055555556 | BQ7: Centro de Estudios de la Energía (Ministerio de Industria y Energía)
A8: Badajoz | B8: 6500 | C8: 10000 | D8: 13600 | E8: 18700 | F8: 21800 | G8: 24600 | H8: 25900 | I8: 23800 | J8: 17900 | K8: 12300 | L8: 8200 | M8: 6200 | N8: 186 | O8: 38.53 | P8: 38.88 | Q8: 17 | R8: 47 | S8: 38 | T8: -1 | U8: 8.6 | V8: 9.9 | W8: 12.7 | X8: 15.2 | Y8: 18 | Z8: 22.8 | AA8: 25.8 | AB8: 25.5 | AC8: 22.6 | AD8: 17.8 | AE8: 12.6 | AF8: 9.1 | AG8: 749.4 | AH8: 767.4 | AI8: NO | AJ8: 7 | AK8: 10 | AL8: -6 | AM8: Badajoz | AN8: 16.71666667 | AO8: B | AP8: ASTURIAS | AQ8: 9 | AR8: 10 | AS8: 11 | AT8: 12 | AU8: 15 | AV8: 18 | AW8: 20 | AX8: 20 | AY8: 19 | AZ8: 16 | BA8: 12 | BB8: 10 | BC8: 14.3 | BD8: 1805.555556 | BE8: 2777.777778 | BF8: 3777.777778 | BG8: 5194.444444 | BH8: 6055.555556 | BI8: 6833.333333 | BJ8: 7194.444444 | BK8: 6611.111111 | BL8: 4972.222222 | BM8: 3416.666667 | BN8: 2277.777778 | BO8: 1722.222222 | BP8: 1.944444444 | BQ8: Centro de Estudios de la Energía (Ministerio de Industria y Energía)
A9: Baleares | B9: 7200 | C9: 10700 | D9: 14400 | E9: 16200 | F9: 21000 | G9: 22700 | H9: 24200 | I9: 20600 | J9: 16400 | K9: 12100 | L9: 8500 | M9: 6500 | N9: 28 | O9: 39.34 | P9: 39.57 | Q9: 8 | R9: 63 | S9: 28 | T9: 4 | U9: 10.5 | V9: 10.5 | W9: 12.2 | X9: 14.5 | Y9: 17.4 | Z9: 21.4 | AA9: 24.1 | AB9: 24.5 | AC9: 22.6 | AD9: 18.4 | AE9: 14.3 | AF9: 11.6 | AG9: 503.4 | AH9: 527.4 | AI9: VARIA | AJ9: 9 | AK9: 11 | AL9: -4 | AM9: Baleares | AN9: 16.83333333 | AO9: B | AP9: ÁVILA | AQ9: 4 | AR9: 5 | AS9: 8 | AT9: 11 | AU9: 14 | AV9: 18 | AW9: 22 | AX9: 22 | AY9: 18 | AZ9: 13 | BA9: 8 | BB9: 5 | BC9: 12.3 | BD9: 2000 | BE9: 2972.222222 | BF9: 4000 | BG9: 4500 | BH9: 5833.333333 | BI9: 6305.555556 | BJ9: 6722.222222 | BK9: 5722.222222 | BL9: 4555.555556 | BM9: 3361.111111 | BN9: 2361.111111 | BO9: 1805.555556 | BP9: 2.5 | BQ9: Centro de Estudios de la Energía (Ministerio de Industria y Energía)
A10: Barcelona | B10: 6700 | C10: 9300 | D10: 13400 | E10: 17900 | F10: 21500 | G10: 23400 | H10: 22900 | I10: 20100 | J10: 16000 | K10: 11500 | L10: 7900 | M10: 6100 | N10: 95 | O10: 41.24 | P10: 41.4 | Q10: 8 | R10: 68 | S10: 31 | T10: 2 | U10: 9.4 | V10: 9.9 | W10: 12.3 | X10: 14.6 | Y10: 17.7 | Z10: 21.6 | AA10: 24.4 | AB10: 24.2 | AC10: 21.7 | AD10: 17.5 | AE10: 13.5 | AF10: 10.2 | AG10: 622.7 | AH10: 655.7 | AI10: S | AJ10: 8 | AK10: 12 | AL10: -20 | AM10: Barcelona | AN10: 16.41666667 | AO10: B | AP10: BADAJOZ | AQ10: 11 | AR10: 12 | AS10: 15 | AT10: 17 | AU10: 20 | AV10: 25 | AW10: 28 | AX10: 28 | AY10: 25 | AZ10: 20 | BA10: 15 | BB10: 11 | BC10: 18.9 | BD10: 1861.111111 | BE10: 2583.333333 | BF10: 3722.222222 | BG10: 4972.222222 | BH10: 5972.222222 | BI10: 6500 | BJ10: 6361.111111 | BK10: 5583.333333 | BL10: 4444.444444 | BM10: 3194.444444 | BN10: 2194.444444 | BO10: 1694.444444 | BP10: 2.222222222 | BQ10: Institut Català d'Energia. Atlas de radiaciò solar a Catalunya. Ediciò 1996
A11: Burgos | B11: 5100 | C11: 7900 | D11: 12400 | E11: 16000 | F11: 18700 | G11: 21500 | H11: 23000 | I11: 20700 | J11: 16700 | K11: 10100 | L11: 6500 | M11: 4500 | N11: 929 | O11: 42.2 | P11: 42.33 | Q11: 15 | R11: 42 | S11: 30 | T11: -6 | U11: 2.5 | V11: 4.8 | W11: 7.1 | X11: 9.2 | Y11: 12.2 | Z11: 16.2 | AA11: 19 | AB11: 18.8 | AC11: 16.2 | AD11: 11.3 | AE11: 6.5 | AF11: 3.4 | AG11: 1615.2 | AH11: 2048.4 | AI11: SO | AJ11: 8 | AK11: 9 | AL11: -18 | AM11: Burgos | AN11: 10.6 | AO11: E | AP11: BALEARES | AQ11: 12 | AR11: 13 | AS11: 14 | AT11: 17 | AU11: 19 | AV11: 23 | AW11: 26 | AX11: 27 | AY11: 25 | AZ11: 20 | BA11: 16 | BB11: 14 | BC11: 18.8 | BD11: 1416.666667 | BE11: 2194.444444 | BF11: 3444.444444 | BG11: 4444.444444 | BH11: 5194.444444 | BI11: 5972.222222 | BJ11: 6388.888889 | BK11: 5750 | BL11: 4638.888889 | BM11: 2805.555556 | BN11: 1805.555556 | BO11: 1250 | BP11: 2.222222222 | BQ11: Centro de Estudios de la Energía (Ministerio de Industria y Energía)
A12: Cáceres | B12: 6800 | C12: 10000 | D12: 14700 | E12: 19600 | F12: 22100 | G12: 25100 | H12: 28100 | I12: 25400 | J12: 19700 | K12: 12700 | L12: 8900 | M12: 6600 | N12: 459 | O12: 39.29 | P12: 39.48 | Q12: 14 | R12: 37 | S12: 38 | T12: -1 | U12: 7.7 | V12: 9.1 | W12: 11.7 | X12: 14.4 | Y12: 17.4 | Z12: 22.5 | AA12: 26 | AB12: 25.6 | AC12: 22.3 | AD12: 16.9 | AE12: 11.7 | AF12: 8.1 | AG12: 946.1 | AH12: 1003.1 | AI12: NO | AJ12: 7 | AK12: 11 | AL12: -6 | AM12: Caceres | AN12: 16.11666667 | AO12: C | AP12: BARCELONA | AQ12: 11 | AR12: 12 | AS12: 14 | AT12: 17 | AU12: 20 | AV12: 24 | AW12: 26 | AX12: 26 | AY12: 24 | AZ12: 20 | BA12: 16 | BB12: 12 | BC12: 18.5 | BD12: 1888.888889 | BE12: 2777.777778 | BF12: 4083.333333 | BG12: 5444.444444 | BH12: 6138.888889 | BI12: 6972.222222 | BJ12: 7805.555556 | BK12: 7055.555556 | BL12: 5472.222222 | BM12: 3527.777778 | BN12: 2472.222222 | BO12: 1833.333333 | BP12: 1.944444444 | BQ12: Centro de Estudios de la Energía (Ministerio de Industria y Energía)
A13: Cádiz | B13: 8100 | C13: 11500 | D13: 15700 | E13: 18500 | F13: 22200 | G13: 23800 | H13: 25900 | I13: 23000 | J13: 18100 | K13: 14200 | L13: 10000 | M13: 7400 | N13: 28 | O13: 36.28 | P13: 36.47 | Q13: 12 | R13: 55 | S13: 32 | T13: 2 | U13: 11.4 | V13: 12.5 | W13: 14.6 | X13: 16.6 | Y13: 18.9 | Z13: 22.2 | AA13: 24.5 | AB13: 24.9 | AC13: 23.4 | AD13: 19.5 | AE13: 15.6 | AF13: 12.5 | AG13: 227.4 | AH13: 227.4 | AI13: SE | AJ13: 20 | AK13: 10 | AL13: -2 | AM13: Cádiz | AN13: 18.05 | AO13: A | AP13: BURGOS | AQ13: 5 | AR13: 6 | AS13: 9 | AT13: 11 | AU13: 14 | AV13: 18 | AW13: 21 | AX13: 21 | AY13: 18 | AZ13: 13 | BA13: 9 | BB13: 5 | BC13: 12.5 | BD13: 2250 | BE13: 3194.444444 | BF13: 4361.111111 | BG13: 5138.888889 | BH13: 6166.666667 | BI13: 6611.111111 | BJ13: 7194.444444 | BK13: 6388.888889 | BL13: 5027.777778 | BM13: 3944.444444 | BN13: 2777.777778 | BO13: 2055.555556 | BP13: 5.555555556 | BQ13: Centro de Estudios de la Energía (Ministerio de Industria y Energía)
A14: Canarias | B14: 9766 | C14: 11700 | D14: 14880 | E14: 17602 | F14: 17844 | G14: 15932 | H14: 15358 | I14: 14990 | J14: 16624 | K14: 12160 | L14: 9650 | M14: 7370 | N14: 6 | O14: 28.11 | P14: 28.18 | Q14: 4 | R14: 66 | S14: 24 | T14: 15 | U14: 18.3 | V14: 19.6 | W14: 19.1 | X14: 19.6 | Y14: 20.3 | Z14: 21.4 | AA14: 23.8 | AB14: 23.6 | AC14: 25.9 | AD14: 23.3 | AE14: 22.1 | AF14: 19.9 | AG14: 241.1 | AH14: 259.1 | AI14: NE | AJ14: 9 | AK14: 10 | AL14: 3 | AM14: Canarias | AN14: 21.40833333 | AO14: A | AP14: CÁCERES | AQ14: 10 | AR14: 11 | AS14: 14 | AT14: 16 | AU14: 19 | AV14: 25 | AW14: 28 | AX14: 28 | AY14: 25 | AZ14: 19 | BA14: 14 | BB14: 10 | BC14: 18.3 | BD14: 2712.777778 | BE14: 3250 | BF14: 4133.333333 | BG14: 4889.444444 | BH14: 4956.666667 | BI14: 4425.555556 | BJ14: 4266.111111 | BK14: 4163.888889 | BL14: 4617.777778 | BM14: 3377.777778 | BN14: 2680.555556 | BO14: 2047.222222 | BP14: 2.5 | BQ14: Centro de Estudios de la Energía (Ministerio de Industria y Energía)
A15: Castellón | B15: 8000 | C15: 12200 | D15: 15500 | E15: 17400 | F15: 20600 | G15: 21400 | H15: 23900 | I15: 19500 | J15: 16600 | K15: 13100 | L15: 8600 | M15: 7300 | N15: 27 | O15: 39.59 | P15: 39.98 | Q15: 9 | R15: 60 | S15: 29 | T15: 4 | U15: 10.4 | V15: 11.1 | W15: 13.1 | X15: 14.9 | Y15: 17.8 | Z15: 21.6 | AA15: 24.3 | AB15: 24.7 | AC15: 22.6 | AD15: 18.6 | AE15: 14.3 | AF15: 11.1 | AG15: 443.4 | AH15: 452.4 | AI15: NO | AJ15: 3 | AK15: 10 | AL15: -8 | AM15: Castellón | AN15: 17.04166667 | AO15: B | AP15: CÁDIZ | AQ15: 13 | AR15: 15 | AS15: 17 | AT15: 19 | AU15: 21 | AV15: 24 | AW15: 27 | AX15: 27 | AY15: 25 | AZ15: 22 | BA15: 18 | BB15: 15 | BC15: 20.3 | BD15: 2222.222222 | BE15: 3388.888889 | BF15: 4305.555556 | BG15: 4833.333333 | BH15: 5722.222222 | BI15: 5944.444444 | BJ15: 6638.888889 | BK15: 5416.666667 | BL15: 4611.111111 | BM15: 3638.888889 | BN15: 2388.888889 | BO15: 2027.777778 | BP15: 0.8333333333 | BQ15: Centro de Estudios de la Energía (Ministerio de Industria y Energía)
A16: Ciudad Real | B16: 7000 | C16: 10100 | D16: 15000 | E16: 18700 | F16: 21400 | G16: 23700 | H16: 25300 | I16: 23200 | J16: 18800 | K16: 12500 | L16: 8700 | M16: 6500 | N16: 628 | O16: 38.59 | P16: 38.98 | Q16: 20 | R16: 56 | S16: 37 | T16: -4 | U16: 5.4 | V16: 7.3 | W16: 10.4 | X16: 12.9 | Y16: 16.3 | Z16: 21.2 | AA16: 25.5 | AB16: 24.8 | AC16: 21 | AD16: 14.8 | AE16: 8.9 | AF16: 6.2 | AG16: 1201.2 | AH16: 1312.6 | AI16: SO | AJ16: 4 | AK16: 10 | AL16: -10 | AM16: Ciudad Real | AN16: 14.55833333 | AO16: D | AP16: CANTABRIA | AQ16: 11 | AR16: 11 | AS16: 14 | AT16: 14 | AU16: 16 | AV16: 19 | AW16: 21 | AX16: 21 | AY16: 20 | AZ16: 17 | BA16: 14 | BB16: 12 | BC16: 15.8 | BD16: 1944.444444 | BE16: 2805.555556 | BF16: 4166.666667 | BG16: 5194.444444 | BH16: 5944.444444 | BI16: 6583.333333 | BJ16: 7027.777778 | BK16: 6444.444444 | BL16: 5222.222222 | BM16: 3472.222222 | BN16: 2416.666667 | BO16: 1805.555556 | BP16: 1.111111111 | BQ16: Centro de Estudios de la Energía (Ministerio de Industria y Energía)
A17: Córdoba | B17: 7200 | C17: 10100 | D17: 15100 | E17: 18500 | F17: 21800 | G17: 25900 | H17: 28500 | I17: 25100 | J17: 19900 | K17: 12600 | L17: 8600 | M17: 6900 | N17: 128 | O17: 37.53 | P17: 37.88 | Q17: 17 | R17: 33 | S17: 38 | T17: -1 | U17: 9.1 | V17: 10.7 | W17: 13.5 | X17: 16.3 | Y17: 19.4 | Z17: 24.4 | AA17: 27.9 | AB17: 27.6 | AC17: 24.3 | AD17: 18.6 | AE17: 13.6 | AF17: 9.6 | AG17: 653.7 | AH17: 662.7 | AI17: SO | AJ17: 5 | AK17: 10 | AL17: -6 | AM17: Córdoba | AN17: 17.91666667 | AO17: B | AP17: CASTELLÓN | AQ17: 13 | AR17: 13 | AS17: 15 | AT17: 17 | AU17: 20 | AV17: 24 | AW17: 26 | AX17: 27 | AY17: 25 | AZ17: 21 | BA17: 16 | BB17: 13 | BC17: 19.2 | BD17: 2000 | BE17: 2805.555556 | BF17: 4194.444444 | BG17: 5138.888889 | BH17: 6055.555556 | BI17: 7194.444444 | BJ17: 7916.666667 | BK17: 6972.222222 | BL17: 5527.777778 | BM17: 3500 | BN17: 2388.888889 | BO17: 1916.666667 | BP17: 1.388888889 | BQ17: Centro de Estudios de la Energía (Ministerio de Industria y Energía)
A18: Cuenca | B18: 5900 | C18: 8800 | D18: 12900 | E18: 17400 | F18: 18700 | G18: 22000 | H18: 25600 | I18: 22300 | J18: 17500 | K18: 11200 | L18: 7200 | M18: 5500 | N18: 949 | O18: 40.05 | P18: 40.08 | Q18: 18 | R18: 52 | S18: 33 | T18: -7 | U18: 3.1 | V18: 4.2 | W18: 7.3 | X18: 10 | Y18: 13.3 | Z18: 18.1 | AA18: 21.9 | AB18: 21.4 | AC18: 18 | AD18: 12 | AE18: 7.2 | AF18: 4.1 | AG18: 1520.8 | AH18: 1828 | AI18: O | AJ18: 8 | AK18: 9 | AL18: -21 | AM18: Cuenca | AN18: 11.71666667 | AO18: E | AP18: CEUTA | AQ18: 15 | AR18: 15 | AS18: 16 | AT18: 17 | AU18: 19 | AV18: 23 | AW18: 25 | AX18: 26 | AY18: 24 | AZ18: 21 | BA18: 18 | BB18: 16 | BC18: 19.6 | BD18: 1638.888889 | BE18: 2444.444444 | BF18: 3583.333333 | BG18: 4833.333333 | BH18: 5194.444444 | BI18: 6111.111111 | BJ18: 7111.111111 | BK18: 6194.444444 | BL18: 4861.111111 | BM18: 3111.111111 | BN18: 2000 | BO18: 1527.777778 | BP18: 2.222222222 | BQ18: Centro de Estudios de la Energía (Ministerio de Industria y Energía)
A19: Gerona | B19: 7238 | C19: 10204 | D19: 13624 | E19: 17300 | F19: 20600 | G19: 22200 | H19: 21700 | I19: 19000 | J19: 15000 | K19: 10900 | L19: 7500 | M19: 6000 | N19: 95 | O19: 41.59 | P19: 41.98 | Q19: 10 | R19: 58 | S19: 33 | T19: -3 | U19: 7.1 | V19: 8.4 | W19: 11.1 | X19: 13.4 | Y19: 16.8 | Z19: 20.7 | AA19: 23.5 | AB19: 23.3 | AC19: 20.9 | AD19: 16 | AE19: 11.3 | AF19: 8 | AG19: 873.3 | AH19: 939.3 | AI19: S | AJ19: 5 | AK19: 11 | AL19: -11 | AM19: Gerona | AN19: 15.04166667 | AO19: C | AP19: CIUDAD REAL | AQ19: 7 | AR19: 9 | AS19: 12 | AT19: 15 | AU19: 18 | AV19: 23 | AW19: 28 | AX19: 27 | AY19: 20 | AZ19: 17 | BA19: 11 | BB19: 8 | BC19: 16.3 | BD19: 2010.555556 | BE19: 2834.444444 | BF19: 3784.444444 | BG19: 4805.555556 | BH19: 5722.222222 | BI19: 6166.666667 | BJ19: 6027.777778 | BK19: 5277.777778 | BL19: 4166.666667 | BM19: 3027.777778 | BN19: 2083.333333 | BO19: 1666.666667 | BP19: 1.388888889 | BQ19: Centro de Estudios de la Energía (Ministerio de Industria y Energía)
A20: Granada | B20: 7800 | C20: 10800 | D20: 15200 | E20: 18500 | F20: 21900 | G20: 24800 | H20: 26700 | I20: 23600 | J20: 18800 | K20: 12900 | L20: 9600 | M20: 7100 | N20: 775 | O20: 37.11 | P20: 37.18 | Q20: 18 | R20: 49 | S20: 36 | T20: -2 | U20: 7 | V20: 8.4 | W20: 11 | X20: 13.3 | Y20: 16.3 | Z20: 21.8 | AA20: 25.7 | AB20: 25.3 | AC20: 21.8 | AD20: 16 | AE20: 11.6 | AF20: 7.7 | AG20: 972.8 | AH20: 1041.8 | AI20: O | AJ20: 4 | AK20: 11 | AL20: -13 | AM20: Granada | AN20: 15.49166667 | AO20: C | AP20: CÓRDOBA | AQ20: 11 | AR20: 13 | AS20: 16 | AT20: 18 | AU20: 21 | AV20: 26 | AW20: 30 | AX20: 30 | AY20: 26 | AZ20: 21 | BA20: 16 | BB20: 12 | BC20: 20 | BD20: 2166.666667 | BE20: 3000 | BF20: 4222.222222 | BG20: 5138.888889 | BH20: 6083.333333 | BI20: 6888.888889 | BJ20: 7416.666667 | BK20: 6555.555556 | BL20: 5222.222222 | BM20: 3583.333333 | BN20: 2666.666667 | BO20: 1972.222222 | BP20: 1.111111111 | BQ20: Centro de Estudios de la Energía (Ministerio de Industria y Energía)
A21: Guadalajara | B21: 6500 | C21: 9200 | D21: 14000 | E21: 17900 | F21: 19400 | G21: 22700 | H21: 25000 | I21: 23200 | J21: 17800 | K21: 11700 | L21: 7800 | M21: 5600 | N21: 1017 | O21: 40.38 | P21: 40.63 | Q21: 15 | R21: 37 | S21: 34 | T21: -4 | U21: 3.5 | V21: 5.9 | W21: 9.5 | X21: 11.9 | Y21: 15.6 | Z21: 20.2 | AA21: 24.3 | AB21: 23.5 | AC21: 19.8 | AD21: 13.7 | AE21: 8.4 | AF21: 5.5 | AG21: 1287 | AH21: 1468.6 | AI21: O | AJ21: 10 | AK21: 10 | AL21: -14 | AM21: Guadalajara | AN21: 13.48333333 | AO21: D | AP21: CUENCA | AQ21: 5 | AR21: 6 | AS21: 9 | AT21: 12 | AU21: 15 | AV21: 20 | AW21: 24 | AX21: 23 | AY21: 20 | AZ21: 14 | BA21: 9 | BB21: 6 | BC21: 13.6 | BD21: 1805.555556 | BE21: 2555.555556 | BF21: 3888.888889 | BG21: 4972.222222 | BH21: 5388.888889 | BI21: 6305.555556 | BJ21: 6944.444444 | BK21: 6444.444444 | BL21: 4944.444444 | BM21: 3250 | BN21: 2166.666667 | BO21: 1555.555556 | BP21: 2.777777778 | BQ21: Centro de Estudios de la Energía (Ministerio de Industria y Energía)
A22: Guipúzcoa | B22: 5500 | C22: 7700 | D22: 11300 | E22: 11700 | F22: 14600 | G22: 16200 | H22: 16100 | I22: 13600 | J22: 12700 | K22: 10300 | L22: 6200 | M22: 5000 | N22: 181 | O22: 43.19 | P22: 43.32 | Q22: 7 | R22: 76 | S22: 22 | T22: -1 | U22: 7.8 | V22: 7.7 | W22: 10.7 | X22: 11.8 | Y22: 10.5 | Z22: 16.8 | AA22: 15.1 | AB22: 19 | AC22: 18.1 | AD22: 14.7 | AE22: 10.7 | AF22: 8 | AG22: 807.9 | AH22: 913.1 | AI22: S | AJ22: 17 | AK22: 12 | AL22: -12 | AM22: Guipuzcoa | AN22: 12.575 | AO22: C | AP22: GERONA | AQ22: 9 | AR22: 10 | AS22: 13 | AT22: 15 | AU22: 19 | AV22: 23 | AW22: 26 | AX22: 25 | AY22: 23 | AZ22: 18 | BA22: 13 | BB22: 10 | BC22: 17 | BD22: 1527.777778 | BE22: 2138.888889 | BF22: 3138.888889 | BG22: 3250 | BH22: 4055.555556 | BI22: 4500 | BJ22: 4472.222222 | BK22: 3777.777778 | BL22: 3527.777778 | BM22: 2861.111111 | BN22: 1722.222222 | BO22: 1388.888889 | BP22: 4.722222222 | BQ22: Centro de Estudios de la Energía (Ministerio de Industria y Energía)
A23: Huelva | B23: 7600 | C23: 11300 | D23: 16000 | E23: 19500 | F23: 24100 | G23: 25600 | H23: 28700 | I23: 25600 | J23: 21200 | K23: 14500 | L23: 9200 | M23: 7500 | N23: 4 | O23: 37.16 | P23: 37.27 | Q23: 14 | R23: 57 | S23: 31 | T23: 1 | U23: 11.1 | V23: 12.3 | W23: 14.4 | X23: 18.4 | Y23: 18.9 | Z23: 22.4 | AA23: 25 | AB23: 25.2 | AC23: 23.3 | AD23: 19.4 | AE23: 15.2 | AF23: 11.9 | AG23: 402.3 | AH23: 402.3 | AI23: SO | AJ23: 1 | AK23: 10 | AL23: -6 | AM23: Huelva | AN23: 18.125 | AO23: B | AP23: GRANADA | AQ23: 9 | AR23: 10 | AS23: 13 | AT23: 16 | AU23: 18 | AV23: 24 | AW23: 27 | AX23: 27 | AY23: 24 | AZ23: 18 | BA23: 13 | BB23: 9 | BC23: 17.3 | BD23: 2111.111111 | BE23: 3138.888889 | BF23: 4444.444444 | BG23: 5416.666667 | BH23: 6694.444444 | BI23: 7111.111111 | BJ23: 7972.222222 | BK23: 7111.111111 | BL23: 5888.888889 | BM23: 4027.777778 | BN23: 2555.555556 | BO23: 2083.333333 | BP23: 0.2777777778 | BQ23: Centro de Estudios de la Energía (Ministerio de Industria y Energía)
A24: Huesca | B24: 6100 | C24: 9600 | D24: 14300 | E24: 18700 | F24: 20300 | G24: 22100 | H24: 23100 | I24: 20900 | J24: 16900 | K24: 11300 | L24: 7200 | M24: 5100 | N24: 488 | O24: 42.08 | P24: 42.13 | Q24: 15 | R24: 72 | S24: 31 | T24: -5 | U24: 4.6 | V24: 6.1 | W24: 10.2 | X24: 12.5 | Y24: 15.9 | Z24: 19.9 | AA24: 22.8 | AB24: 22.5 | AC24: 19.3 | AD24: 14 | AE24: 8.9 | AF24: 5.4 | AG24: 1232.5 | AH24: 1350.1 | AI24: SO | AJ24: 1 | AK24: 10 | AL24: -14 | AM24: Huesca | AN24: 13.50833333 | AO24: D | AP24: GUADALAJARA | AQ24: 7 | AR24: 8 | AS24: 12 | AT24: 14 | AU24: 18 | AV24: 22 | AW24: 26 | AX24: 26 | AY24: 22 | AZ24: 16 | BA24: 10 | BB24: 8 | BC24: 15.8 | BD24: 1694.444444 | BE24: 2666.666667 | BF24: 3972.222222 | BG24: 5194.444444 | BH24: 5638.888889 | BI24: 6138.888889 | BJ24: 6416.666667 | BK24: 5805.555556 | BL24: 4694.444444 | BM24: 3138.888889 | BN24: 2000 | BO24: 1416.666667 | BP24: 0.2777777778 | BQ24: Centro de Estudios de la Energía (Ministerio de Industria y Energía)
A25: Jaén | B25: 6700 | C25: 10100 | D25: 14400 | E25: 18000 | F25: 20300 | G25: 24400 | H25: 26700 | I25: 24100 | J25: 19200 | K25: 11900 | L25: 8100 | M25: 6500 | N25: 586 | O25: 37.46 | P25: 37.77 | Q25: 14 | R25: 35 | S25: 36 | T25: 0 | U25: 8.2 | V25: 9.6 | W25: 12.3 | X25: 14.1 | Y25: 18.3 | Z25: 23.8 | AA25: 27.7 | AB25: 27.3 | AC25: 23.4 | AD25: 17.6 | AE25: 12.7 | AF25: 8.9 | AG25: 791.4 | AH25: 830.4 | AI25: SO | AJ25: 5 | AK25: 11 | AL25: -8 | AM25: Jaen | AN25: 16.99166667 | AO25: C | AP25: GUIPÚZCOA | AQ25: 10 | AR25: 10 | AS25: 13 | AT25: 14 | AU25: 16 | AV25: 19 | AW25: 21 | AX25: 21 | AY25: 20 | AZ25: 17 | BA25: 13 | BB25: 10 | BC25: 15.3 | BD25: 1861.111111 | BE25: 2805.555556 | BF25: 4000 | BG25: 5000 | BH25: 5638.888889 | BI25: 6777.777778 | BJ25: 7416.666667 | BK25: 6694.444444 | BL25: 5333.333333 | BM25: 3305.555556 | BN25: 2250 | BO25: 1805.555556 | BP25: 1.388888889 | BQ25: Centro de Estudios de la Energía (Ministerio de Industria y Energía)
A26: La Coruña | B26: 5400 | C26: 8000 | D26: 11400 | E26: 12400 | F26: 15400 | G26: 16200 | H26: 17400 | I26: 15300 | J26: 13900 | K26: 10900 | L26: 6400 | M26: 5100 | N26: 54 | O26: 43.22 | P26: 43.37 | Q26: 9 | R26: 63 | S26: 23 | T26: 2 | U26: 9.9 | V26: 9.8 | W26: 11.5 | X26: 12.4 | Y26: 14 | Z26: 16.5 | AA26: 18.2 | AB26: 18.9 | AC26: 17.8 | AD26: 15.3 | AE26: 12.4 | AF26: 10.2 | AG26: 688.2 | AH26: 827.5 | AI26: SO | AJ26: 18 | AK26: 10 | AL26: -9 | AM26: La Coruña | AN26: 13.90833333 | AO26: C | AP26: HUELVA | AQ26: 13 | AR26: 14 | AS26: 16 | AT26: 20 | AU26: 21 | AV26: 24 | AW26: 27 | AX26: 27 | AY26: 25 | AZ26: 21 | BA26: 17 | BB26: 14 | BC26: 19.9 | BD26: 1500 | BE26: 2222.222222 | BF26: 3166.666667 | BG26: 3444.444444 | BH26: 4277.777778 | BI26: 4500 | BJ26: 4833.333333 | BK26: 4250 | BL26: 3861.111111 | BM26: 3027.777778 | BN26: 1777.777778 | BO26: 1416.666667 | BP26: 5 | BQ26: Centro de Estudios de la Energía (Ministerio de Industria y Energía)
A27: León | B27: 5800 | C27: 8700 | D27: 13800 | E27: 17200 | F27: 19500 | G27: 22100 | H27: 24200 | I27: 20900 | J27: 17200 | K27: 10400 | L27: 7000 | M27: 4800 | N27: 908 | O27: 42.35 | P27: 42.58 | Q27: 16 | R27: 45 | S27: 28 | T27: -6 | U27: 2.8 | V27: 4.2 | W27: 7.6 | X27: 9.9 | Y27: 12.5 | Z27: 17.2 | AA27: 19.7 | AB27: 19.5 | AC27: 16.6 | AD27: 11.8 | AE27: 7 | AF27: 3.6 | AG27: 1693.7 | AH27: 2142.6 | AI27: NO | AJ27: 8 | AK27: 9 | AL27: -18 | AM27: León | AN27: 11.03333333 | AO27: E | AP27: HUESCA | AQ27: 7 | AR27: 8 | AS27: 12 | AT27: 15 | AU27: 18 | AV27: 22 | AW27: 25 | AX27: 25 | AY27: 21 | AZ27: 16 | BA27: 11 | BB27: 7 | BC27: 15.6 | BD27: 1611.111111 | BE27: 2416.666667 | BF27: 3833.333333 | BG27: 4777.777778 | BH27: 5416.666667 | BI27: 6138.888889 | BJ27: 6722.222222 | BK27: 5805.555556 | BL27: 4777.777778 | BM27: 2888.888889 | BN27: 1944.444444 | BO27: 1333.333333 | BP27: 2.222222222 | BQ27: Centro de Estudios de la Energía (Ministerio de Industria y Energía)
A28: Lérida | B28: 6078 | C28: 12168 | D28: 15592 | E28: 19226 | F28: 21954 | G28: 24900 | H28: 24638 | I28: 21340 | J28: 16740 | K28: 11980 | L28: 6302 | M28: 4006 | N28: 323 | O28: 41.41 | P28: 41.68 | Q28: 14 | R28: 50 | S28: 33 | T28: -5 | U28: 4.9 | V28: 9.5 | W28: 11.3 | X28: 11.9 | Y28: 16.1 | Z28: 19.6 | AA28: 24.1 | AB28: 24.4 | AC28: 21.9 | AD28: 14.9 | AE28: 8.3 | AF28: 7.3 | AG28: 1189.7 | AH28: 1225.7 | AI28: S | AJ28: 1 | AK28: 7 | AL28: -11 | AM28: Lérida | AN28: 14.51666667 | AO28: C | AP28: JAÉN | AQ28: 11 | AR28: 11 | AS28: 14 | AT28: 17 | AU28: 21 | AV28: 26 | AW28: 30 | AX28: 29 | AY28: 25 | AZ28: 19 | BA28: 15 | BB28: 10 | BC28: 19 | BD28: 1688.333333 | BE28: 3380 | BF28: 4331.111111 | BG28: 5340.555556 | BH28: 6098.333333 | BI28: 6916.666667 | BJ28: 6843.888889 | BK28: 5927.777778 | BL28: 4650 | BM28: 3327.777778 | BN28: 1750.555556 | BO28: 1112.777778 | BP28: 0.2777777778 | BQ28: Centro de Estudios de la Energía (Ministerio de Industria y Energía)
A29: Logroño | B29: 5986 | C29: 9630 | D29: 13606 | E29: 18254 | F29: 21228 | G29: 23572 | H29: 25224 | I29: 21396 | J29: 16538 | K29: 11808 | L29: 6740 | M29: 5024 | N29: 380 | O29: 42.28 | P29: 42.47 | Q29: 14 | R29: 59 | S29: 33 | T29: -3 | U29: 5.1 | V29: 6.5 | W29: 9.7 | X29: 11.9 | Y29: 14.9 | Z29: 19.1 | AA29: 21.8 | AB29: 21.5 | AC29: 19 | AD29: 13.8 | AE29: 8.9 | AF29: =6+0.1 -> 6.1 | AG29: 1229.4 | AH29: 1404.9 | AI29: NO | AJ29: 15 | AK29: 10 | AL29: -12 | AM29: Logroño | AN29: 13.19166667 | AO29: D | AP29: LA CORUÑA | AQ29: 12 | AR29: 12 | AS29: 14 | AT29: 14 | AU29: 16 | AV29: 19 | AW29: 20 | AX29: 21 | AY29: 20 | AZ29: 17 | BA29: 14 | BB29: 12 | BC29: 15.9 | BD29: 1662.777778 | BE29: 2675 | BF29: 3779.444444 | BG29: 5070.555556 | BH29: 5896.666667 | BI29: 6547.777778 | BJ29: 7006.666667 | BK29: 5943.333333 | BL29: 4593.888889 | BM29: 3280 | BN29: 1872.222222 | BO29: 1395.555556 | BP29: 4.166666667 | BQ29: Centro de Estudios de la Energía (Ministerio de Industria y Energía)
A30: Lugo | B30: 5100 | C30: 7600 | D30: 11700 | E30: 15200 | F30: 17100 | G30: 19500 | H30: 20200 | I30: 18400 | J30: 15000 | K30: 9900 | L30: 6200 | M30: 4500 | N30: 465 | O30: 43 | P30: 43 | Q30: 14 | R30: 67 | S30: 26 | T30: -2 | U30: 6 | V30: 6.9 | W30: 9.4 | X30: 11 | Y30: 13.1 | Z30: 16.3 | AA30: 18.1 | AB30: 16.6 | AC30: 16.8 | AD30: 13.2 | AE30: 8.8 | AF30: 6.2 | AG30: 1377.8 | AH30: 1770.9 | AI30: NE | AJ30: 12 | AK30: 11 | AL30: -8 | AM30: Lugo | AN30: 11.86666667 | AO30: D | AP30: LA RIOJA | AQ30: 7 | AR30: 9 | AS30: 12 | AT30: 14 | AU30: 17 | AV30: 21 | AW30: 24 | AX30: 24 | AY30: 21 | AZ30: 16 | BA30: 11 | BB30: 8 | BC30: 15.3 | BD30: 1416.666667 | BE30: 2111.111111 | BF30: 3250 | BG30: 4222.222222 | BH30: 4750 | BI30: 5416.666667 | BJ30: 5611.111111 | BK30: 5111.111111 | BL30: 4166.666667 | BM30: 2750 | BN30: 1722.222222 | BO30: 1250 | BP30: 3.333333333 | BQ30: Centro de Estudios de la Energía (Ministerio de Industria y Energía)
A31: Madrid | B31: 6700 | C31: 10600 | D31: 13600 | E31: 18800 | F31: 20900 | G31: 23500 | H31: 26000 | I31: 23100 | J31: 16900 | K31: 11400 | L31: 7500 | M31: 5900 | N31: 667 | O31: 40.25 | P31: 40.42 | Q31: 15 | R31: 42 | S31: 34 | T31: -3 | U31: 4.9 | V31: 6.5 | W31: 10 | X31: 13 | Y31: 15.7 | Z31: 20.6 | AA31: 24.2 | AB31: 23.6 | AC31: 19.8 | AD31: 14 | AE31: 8.9 | AF31: 5.6 | AG31: 1259.5 | AH31: 1404.9 | AI31: NE | AJ31: 10 | AK31: 10 | AL31: -16 | AM31: Madrid | AN31: 13.9 | AO31: D | AP31: LAS PALMAS | AQ31: 20 | AR31: 20 | AS31: 21 | AT31: 22 | AU31: 23 | AV31: 24 | AW31: 25 | AX31: 25 | AY31: 26 | AZ31: 25 | BA31: 23 | BB31: 21 | BC31: 22.9 | BD31: 1861.111111 | BE31: 2944.444444 | BF31: 3777.777778 | BG31: 5222.222222 | BH31: 5805.555556 | BI31: 6527.777778 | BJ31: 7222.222222 | BK31: 6416.666667 | BL31: 4694.444444 | BM31: 3166.666667 | BN31: 2083.333333 | BO31: 1638.888889 | BP31: 2.777777778 | BQ31: Centro de Estudios de la Energía (Ministerio de Industria y Energía)
A32: Málaga | B32: 8300 | C32: 12000 | D32: 15500 | E32: 18500 | F32: 23200 | G32: 24500 | H32: 26500 | I32: 23200 | J32: 19000 | K32: 13600 | L32: 9300 | M32: 8000 | N32: 40 | O32: 36.43 | P32: 36.72 | Q32: 6 | R32: 60 | S32: 28 | T32: 13 | U32: 12.5 | V32: 12.9 | W32: 15 | X32: 16.3 | Y32: 19.3 | Z32: 22.8 | AA32: 25.2 | AB32: 25.6 | AC32: 23.5 | AD32: 19.7 | AE32: 15.8 | AF32: 13.3 | AG32: 247.6 | AH32: 247.6 | AI32: S | AJ32: 7 | AK32: 12 | AL32: -4 | AM32: Málaga | AN32: 18.49166667 | AO32: A | AP32: LEÓN | AQ32: 5 | AR32: 6 | AS32: 10 | AT32: 12 | AU32: 15 | AV32: 19 | AW32: 22 | AX32: 22 | AY32: 19 | AZ32: 14 | BA32: 9 | BB32: 6 | BC32: 13.3 | BD32: 2305.555556 | BE32: 3333.333333 | BF32: 4305.555556 | BG32: 5138.888889 | BH32: 6444.444444 | BI32: 6805.555556 | BJ32: 7361.111111 | BK32: 6444.444444 | BL32: 5277.777778 | BM32: 3777.777778 | BN32: 2583.333333 | BO32: 2222.222222 | BP32: 1.944444444 | BQ32: Centro de Estudios de la Energía (Ministerio de Industria y Energía)
A33: Melilla | B33: 9400 | C33: 12600 | D33: 17200 | E33: 20300 | F33: 23000 | G33: 24800 | H33: 24800 | I33: 22600 | J33: 18300 | K33: 14200 | L33: 10900 | M33: 8700 | N33: 40 | O33: 36.43 | P33: 36.72 | U33: 12.5 | V33: 12.9 | W33: 15 | X33: 16.3 | Y33: 19.3 | Z33: 22.8 | AA33: 25.2 | AB33: 25.6 | AC33: 23.5 | AD33: 19.7 | AE33: 15.8 | AF33: 13.3 | AG33: 225 | AH33: 225 | AI33: S | AJ33: 7 | AK33: 10 | AL33: -1 | AM33: Melilla | AN33: 18.49166667 | AO33: A | AP33: LÉRIDA | AQ33: 7 | AR33: 10 | AS33: 14 | AT33: 15 | AU33: 21 | AV33: 24 | AW33: 27 | AX33: 27 | AY33: 23 | AZ33: 18 | BA33: 11 | BB33: 8 | BC33: 17.1 | BD33: 2611.111111 | BE33: 3500 | BF33: 4777.777778 | BG33: 5638.888889 | BH33: 6388.888889 | BI33: 6888.888889 | BJ33: 6888.888889 | BK33: 6277.777778 | BL33: 5083.333333 | BM33: 3944.444444 | BN33: 3027.777778 | BO33: 2416.666667 | BP33: 1.944444444 | BQ33: Centro de Estudios de la Energía (Ministerio de Industria y Energía)
A34: Murcia | B34: 10100 | C34: 14800 | D34: 16600 | E34: 20400 | F34: 24200 | G34: 25600 | H34: 27700 | I34: 23500 | J34: 18600 | K34: 13900 | L34: 9800 | M34: 8100 | N34: 42 | O34: 37.59 | P34: 37.98 | Q34: 14 | R34: 59 | S34: 36 | T34: -1 | U34: 10.7 | V34: 11.6 | W34: 14.2 | X34: 16 | Y34: 19.5 | Z34: 23.4 | AA34: 26 | AB34: 26.3 | AC34: 23.8 | AD34: 18.9 | AE34: 14.4 | AF34: 11.6 | AG34: 432.5 | AH34: 432.5 | AI34: SO | AJ34: 1 | AK34: 10 | AL34: -5 | AM34: Murcia | AN34: 18.03333333 | AO34: B | AP34: LUGO | AQ34: 8 | AR34: 9 | AS34: 11 | AT34: 13 | AU34: 15 | AV34: 18 | AW34: 20 | AX34: 21 | AY34: 19 | AZ34: 15 | BA34: 11 | BB34: 8 | BC34: 14 | BD34: 2805.555556 | BE34: 4111.111111 | BF34: 4611.111111 | BG34: 5666.666667 | BH34: 6722.222222 | BI34: 7111.111111 | BJ34: 7694.444444 | BK34: 6527.777778 | BL34: 5166.666667 | BM34: 3861.111111 | BN34: 2722.222222 | BO34: 2250 | BP34: 0.2777777778 | BQ34: Centro de Estudios de la Energía (Ministerio de Industria y Energía)
A35: Orense | B35: 4700 | C35: 7300 | D35: 11300 | E35: 14000 | F35: 16200 | G35: 17600 | H35: 18300 | I35: 16600 | J35: 14300 | K35: 9400 | L35: 5600 | M35: 4300 | O35: 42.3 | Q35: 9 | R35: 55 | S35: 33 | T35: -3 | U35: 6.6 | V35: 7.2 | W35: 10.7 | X35: 12.6 | Y35: 16.1 | Z35: 19.1 | AA35: 21.8 | AB35: 21.2 | AC35: 18.7 | AD35: 13.9 | AE35: 9.5 | AF35: 7.3 | AG35: 910.4 | AH35: 967.4 | AI35: SO | AJ35: 18 | AK35: 11 | AL35: -8 | AM35: Orense | AN35: 13.725 | AO35: C | AP35: MADRID | AQ35: 6 | AR35: 8 | AS35: 11 | AT35: 13 | AU35: 18 | AV35: 23 | AW35: 28 | AX35: 26 | AY35: 21 | AZ35: 15 | BA35: 11 | BB35: 7 | BC35: 15.6 | BD35: 1305.555556 | BE35: 2027.777778 | BF35: 3138.888889 | BG35: 3888.888889 | BH35: 4500 | BI35: 4888.888889 | BJ35: 5083.333333 | BK35: 4611.111111 | BL35: 3972.222222 | BM35: 2611.111111 | BN35: 1555.555556 | BO35: 1194.444444 | BP35: 5 | BQ35: Centro de Estudios de la Energía (Ministerio de Industria y Energía)
A36: Oviedo | B36: 5360 | C36: 7536 | D36: 10426 | E36: 12892 | F36: 15280 | G36: 16622 | H36: 16204 | I36: 14196 | J36: 12100 | K36: 8040 | L36: 5610 | M36: 4272 | N36: 232 | O36: 43.22 | P36: 43.37 | Q36: 9 | R36: 70 | S36: 26 | T36: -2 | U36: 9.3 | V36: 9.4 | W36: 11.3 | X36: 12.3 | Y36: 14.1 | Z36: 17 | AA36: 19.6 | AB36: 19.5 | AC36: 18.1 | AD36: 15.1 | AE36: 12 | AF36: 10.1 | AG36: 978.6 | AH36: 1200.3 | AI36: NE | AJ36: 1 | AK36: 10 | AL36: -11 | AM36: Oviedo | AN36: 13.98333333 | AO36: C | AP36: MÁLAGA | AQ36: 15 | AR36: 15 | AS36: 17 | AT36: 19 | AU36: 21 | AV36: 25 | AW36: 27 | AX36: 28 | AY36: 26 | AZ36: 22 | BA36: 18 | BB36: 15 | BC36: 20.7 | BD36: =B36/3.6 -> 1488.888889 | BE36: =C36/3.6 -> 2093.333333 | BF36: =D36/3.6 -> 2896.111111 | BG36: =E36/3.6 -> 3581.111111 | BH36: =F36/3.6 -> 4244.444444 | BI36: =G36/3.6 -> 4617.222222 | BJ36: =H36/3.6 -> 4501.111111 | BK36: =I36/3.6 -> 3943.333333 | BL36: =J36/3.6 -> 3361.111111 | BM36: =K36/3.6 -> 2233.333333 | BN36: =L36/3.6 -> 1558.333333 | BO36: =M36/3.6 -> 1186.666667 | BP36: =AJ36*1000/3600 -> 0.2777777778 | BQ36: Centro de Estudios de la Energía (Ministerio de Industria y Energía)
A37: Palencia | B37: 5300 | C37: 9000 | D37: 13200 | E37: 17500 | F37: 19700 | G37: 21800 | H37: 24100 | I37: 21600 | J37: 17100 | K37: 10900 | L37: 6600 | M37: 4600 | N37: 734 | O37: 42 | P37: 42 | Q37: 16 | R37: 45 | S37: 30 | T37: -6 | U37: 3.3 | V37: 4.6 | W37: 8.2 | X37: 10.5 | Y37: 13.5 | Z37: 18.1 | AA37: 21 | AB37: 20.8 | AC37: 17.6 | AD37: 12.2 | AE37: 7.2 | AF37: 3.9 | AG37: 1483.4 | AH37: 1781.5 | AI37: NE | AJ37: 1 | AK37: 10 | AL37: -14 | AM37: Palencia | AN37: 11.74166667 | AO37: D | AP37: MELILLA | AQ37: 15 | AR37: 15 | AS37: 16 | AT37: 18 | AU37: 21 | AV37: 25 | AW37: 27 | AX37: 28 | AY37: 26 | AZ37: 22 | BA37: 18 | BB37: 16 | BC37: 20.6 | BD37: 1472.222222 | BE37: 2500 | BF37: 3666.666667 | BG37: 4861.111111 | BH37: 5472.222222 | BI37: 6055.555556 | BJ37: 6694.444444 | BK37: 6000 | BL37: 4750 | BM37: 3027.777778 | BN37: 1833.333333 | BO37: 1277.777778 | BP37: 0.2777777778 | BQ37: Centro de Estudios de la Energía (Ministerio de Industria y Energía)
A38: Pamplona | B38: 4722.967742 | C38: 8812.285714 | D38: 15305.80645 | E38: 16968 | F38: 20078.70968 | G38: 23928 | H38: 23260.64516 | I38: 20949.67742 | J38: 14388 | K38: 9651.483871 | L38: 6055.2 | M38: 4068 | N38: 734 | O38: 42 | P38: 42 | Q38: 12 | R38: 51 | S38: 32 | T38: -5 | U38: 4.6 | V38: 5.4 | W38: 9 | X38: 11.1 | Y38: 14.4 | Z38: 17.8 | AA38: 20.2 | AB38: 19.7 | AC38: 18.3 | AD38: 13.4 | AE38: 8.2 | AF38: 5.5 | AG38: 1303.9 | AH38: 1534.6 | AI38: N | AJ38: 8 | AK38: 10 | AL38: -16 | AM38: Pamplona | AN38: 12.3 | AO38: D | AP38: MURCIA | AQ38: 12 | AR38: 12 | AS38: 15 | AT38: 17 | AU38: 21 | AV38: 25 | AW38: 28 | AX38: 28 | AY38: 25 | AZ38: 20 | BA38: 16 | BB38: 12 | BC38: 19.3 | BD38: 1311.935484 | BE38: 2447.857143 | BF38: 4251.612903 | BG38: 4713.333333 | BH38: 5577.419355 | BI38: 6646.666667 | BJ38: 6461.290323 | BK38: 5819.354839 | BL38: 3996.666667 | BM38: 2680.967742 | BN38: 1682 | BO38: 1130 | BP38: 2.222222222 | BQ38: Gobierno de Navarra. Estación Meteorológica del Perdón
A39: Pontevedra | B39: 5500 | C39: 8200 | D39: 13000 | E39: 15700 | F39: 17500 | G39: 20400 | H39: 22000 | I39: 18900 | J39: 15100 | K39: 11300 | L39: 6800 | M39: 5500 | N39: 19 | O39: 42.26 | P39: 42.43 | Q39: 12 | R39: 62 | S39: 27 | T39: 0 | U39: 9.2 | V39: 10.1 | W39: 12.3 | X39: 14.2 | Y39: 15.6 | Z39: 18.1 | AA39: 20.2 | AB39: 20.5 | AC39: 18.2 | AD39: 14.9 | AE39: 11.9 | AF39: 9.5 | AG39: 791.4 | AH39: 891 | AI39: N | AJ39: 12 | AK39: 10 | AL39: -4 | AM39: Pontevedra | AN39: 14.55833333 | AO39: C | AP39: NAVARRA | AQ39: 7 | AR39: 7 | AS39: 11 | AT39: 13 | AU39: 16 | AV39: 20 | AW39: 22 | AX39: 23 | AY39: 20 | AZ39: 15 | BA39: 10 | BB39: 8 | BC39: 14.3 | BD39: 1527.777778 | BE39: 2277.777778 | BF39: 3611.111111 | BG39: 4361.111111 | BH39: 4861.111111 | BI39: 5666.666667 | BJ39: 6111.111111 | BK39: 5250 | BL39: 4194.444444 | BM39: 3138.888889 | BN39: 1888.888889 | BO39: 1527.777778 | BP39: 3.333333333 | BQ39: Centro de Estudios de la Energía (Ministerio de Industria y Energía)
A40: Salamanca | B40: 6100 | C40: 9500 | D40: 13500 | E40: 17100 | F40: 19700 | G40: 22800 | H40: 24600 | I40: 22600 | J40: 17500 | K40: 11300 | L40: 7400 | M40: 5200 | N40: 803 | O40: 40.58 | P40: 40.97 | Q40: 18 | R40: 46 | S40: 34 | T40: -7 | U40: 3.7 | V40: 4.9 | W40: 8.1 | X40: 10.5 | Y40: 13.7 | Z40: 18.4 | AA40: 21.5 | AB40: 21.2 | AC40: 18.1 | AD40: 11.9 | AE40: 7.4 | AF40: 4.2 | AG40: 1425.2 | AH40: 1662.2 | AI40: O | AJ40: 10 | AK40: 10 | AL40: -16 | AM40: Salamanca | AN40: 11.96666667 | AO40: D | AP40: ORENSE | AQ40: 9 | AR40: 9 | AS40: 13 | AT40: 15 | AU40: 18 | AV40: 21 | AW40: 24 | AX40: 23 | AY40: 21 | AZ40: 16 | BA40: 12 | BB40: 9 | BC40: 15.8 | BD40: 1694.444444 | BE40: 2638.888889 | BF40: 3750 | BG40: 4750 | BH40: 5472.222222 | BI40: 6333.333333 | BJ40: 6833.333333 | BK40: 6277.777778 | BL40: 4861.111111 | BM40: 3138.888889 | BN40: 2055.555556 | BO40: 1444.444444 | BP40: 2.777777778 | BQ40: Centro de Estudios de la Energía (Ministerio de Industria y Energía)
A41: Santander | B41: 4704 | C41: 7268 | D41: 9648 | E41: 11338 | F41: 15138 | G41: 15740 | H41: 15134 | I41: 12028 | J41: 11482 | K41: 8984 | L41: 5206 | M41: 3574 | N41: 69 | O41: 43.28 | P41: 43.47 | Q41: 7 | R41: 74 | S41: 25 | T41: 2 | U41: 9.3 | V41: 9.2 | W41: 11.5 | X41: 12.3 | Y41: 14.2 | Z41: 16.9 | AA41: 18.8 | AB41: 19.3 | AC41: 18.2 | AD41: 15.3 | AE41: 12.2 | AF41: 9.9 | AG41: 634.1 | AH41: 724.1 | AI41: O | AJ41: 20 | AK41: 10 | AL41: -4 | AM41: Santander | AN41: 13.925 | AO41: B | AP41: PALENCIA | AQ41: 5 | AR41: 7 | AS41: 10 | AT41: 13 | AU41: 16 | AV41: 20 | AW41: 23 | AX41: 23 | AY41: 20 | AZ41: 14 | BA41: 9 | BB41: 6 | BC41: 13.8 | BD41: 1306.666667 | BE41: 2018.888889 | BF41: 2680 | BG41: 3149.444444 | BH41: 4205 | BI41: 4372.222222 | BJ41: 4203.888889 | BK41: 3341.111111 | BL41: 3189.444444 | BM41: 2495.555556 | BN41: 1446.111111 | BO41: 992.7777778 | BP41: 5.555555556 | BQ41: Centro de Estudios de la Energía (Ministerio de Industria y Energía)
A42: Segovia | B42: 5700 | C42: 8800 | D42: 13400 | E42: 18400 | F42: 20400 | G42: 22600 | H42: 25700 | I42: 24900 | J42: 18800 | K42: 11400 | L42: 6800 | M42: 5100 | N42: 1002 | O42: 40.57 | P42: 40.95 | Q42: 17 | R42: 35 | S42: 33 | T42: -6 | U42: 2.4 | V42: 4 | W42: 7.6 | X42: 10.1 | Y42: 13.2 | Z42: 18.2 | AA42: 21.7 | AB42: 21.3 | AC42: 17.5 | AD42: 11.8 | AE42: 6.6 | AF42: 3.1 | AG42: 1534.1 | AH42: 1366.1 | AI42: O | AJ42: 9 | AK42: 10 | AL42: -17 | AM42: Segovia | AN42: 11.45833333 | AO42: E | AP42: PONTEVEDRA | AQ42: 11 | AR42: 12 | AS42: 14 | AT42: 16 | AU42: 18 | AV42: 20 | AW42: 22 | AX42: 23 | AY42: 20 | AZ42: 17 | BA42: 14 | BB42: 12 | BC42: 16.6 | BD42: 1583.333333 | BE42: 2444.444444 | BF42: 3722.222222 | BG42: 5111.111111 | BH42: 5666.666667 | BI42: 6277.777778 | BJ42: 7138.888889 | BK42: 6916.666667 | BL42: 5222.222222 | BM42: 3166.666667 | BN42: 1888.888889 | BO42: 1416.666667 | BP42: 2.5 | BQ42: Centro de Estudios de la Energía (Ministerio de Industria y Energía)
A43: Sevilla | B43: 7300 | C43: 10900 | D43: 14400 | E43: 19200 | F43: 22400 | G43: 24300 | H43: 24900 | I43: 23000 | J43: 17900 | K43: 12300 | L43: 8800 | M43: 6900 | N43: 30 | O43: 37.23 | P43: 37.38 | Q43: 18 | R43: 43 | S43: 40 | T43: 1 | U43: 10.5 | V43: 12.3 | W43: 14.6 | X43: 17.2 | Y43: 19.9 | Z43: 24.8 | AA43: 27.9 | AB43: 27.8 | AC43: 24.8 | AD43: 19.8 | AE43: 15 | AF43: 11.4 | AG43: 438.4 | AH43: 438.4 | AI43: SO | AJ43: 10 | AK43: 12 | AL43: -6 | AM43: Sevilla | AN43: 18.83333333 | AO43: B | AP43: SALAMANCA | AQ43: 6 | AR43: 7 | AS43: 10 | AT43: 13 | AU43: 16 | AV43: 20 | AW43: 24 | AX43: 23 | AY43: 20 | AZ43: 14 | BA43: 9 | BB43: 6 | BC43: 14 | BD43: 2027.777778 | BE43: 3027.777778 | BF43: 4000 | BG43: 5333.333333 | BH43: 6222.222222 | BI43: 6750 | BJ43: 6916.666667 | BK43: 6388.888889 | BL43: 4972.222222 | BM43: 3416.666667 | BN43: 2444.444444 | BO43: 1916.666667 | BP43: 2.777777778 | BQ43: Centro de Estudios de la Energía (Ministerio de Industria y Energía)
A44: Soria | B44: 5900 | C44: 8700 | D44: 12800 | E44: 17100 | F44: 19700 | G44: 21800 | H44: 24100 | I44: 22300 | J44: 17500 | K44: 11100 | L44: 7600 | M44: 5600 | N44: 1063 | O44: 41.46 | P44: 41.77 | Q44: 18 | R44: 45 | S44: 29 | T44: -7 | U44: 2.3 | V44: 3.5 | W44: 6.6 | X44: 8.9 | Y44: 11.9 | Z44: 16.5 | AA44: 19.6 | AB44: 19.5 | AC44: 16.4 | AD44: 10.9 | AE44: 6.2 | AF44: 3.1 | AG44: 1609.1 | AH44: 1977.6 | AI44: VARIA | AJ44: 15 | AK44: 10 | AL44: -16 | AM44: Soria | AN44: 10.45 | AO44: E | AP44: SEGOVIA | AQ44: 4 | AR44: 6 | AS44: 10 | AT44: 12 | AU44: 15 | AV44: 20 | AW44: 24 | AX44: 23 | AY44: 20 | AZ44: 14 | BA44: 9 | BB44: 5 | BC44: 13.5 | BD44: 1638.888889 | BE44: 2416.666667 | BF44: 3555.555556 | BG44: 4750 | BH44: 5472.222222 | BI44: 6055.555556 | BJ44: 6694.444444 | BK44: 6194.444444 | BL44: 4861.111111 | BM44: 3083.333333 | BN44: 2111.111111 | BO44: 1555.555556 | BP44: 4.166666667 | BQ44: Centro de Estudios de la Energía (Ministerio de Industria y Energía)
A45: Tarragona | B45: 7414 | C45: 11544 | D45: 13168 | E45: 19200 | F45: 23000 | G45: 24800 | H45: 24100 | I45: 21000 | J45: 16400 | K45: 11600 | L45: 7800 | M45: 6100 | N45: 60 | O45: 41.07 | P45: 41.12 | Q45: 7 | R45: 68 | S45: 26 | T45: 1 | U45: 8.9 | V45: 10.1 | W45: 11.6 | X45: 13.7 | Y45: 16.6 | Z45: 20.3 | AA45: 22.9 | AB45: 23.2 | AC45: 21.1 | AD45: 17.7 | AE45: 13.2 | AF45: 10.3 | AG45: 583.7 | AH45: 625.7 | AI45: S | AJ45: 5 | AK45: 10 | AL45: -7 | AM45: Tarragona | AN45: 15.8 | AO45: B | AP45: SEVILLA | AQ45: 11 | AR45: 13 | AS45: 14 | AT45: 17 | AU45: 21 | AV45: 25 | AW45: 29 | AX45: 29 | AY45: 24 | AZ45: 20 | BA45: 16 | BB45: 12 | BC45: 19.3 | BD45: 2059.444444 | BE45: 3206.666667 | BF45: 3657.777778 | BG45: 5333.333333 | BH45: 6388.888889 | BI45: 6888.888889 | BJ45: 6694.444444 | BK45: 5833.333333 | BL45: 4555.555556 | BM45: 3222.222222 | BN45: 2166.666667 | BO45: 1694.444444 | BP45: 1.388888889 | BQ45: Centro de Estudios de la Energía (Ministerio de Industria y Energía)
A46: Tenerife | B46: 10700 | C46: 13300 | D46: 18100 | E46: 21500 | F46: 25700 | G46: 26500 | H46: 29300 | I46: 26600 | J46: 21200 | K46: 16200 | L46: 10800 | M46: 9300 | N46: 37 | O46: 28.28 | P46: 28.47 | Q46: 8 | R46: 55 | S46: 22 | T46: 15 | U46: 17.4 | V46: 17.5 | W46: 18.2 | X46: 19.2 | Y46: 20.4 | Z46: 22.4 | AA46: 24.2 | AB46: 24.7 | AC46: 24.1 | AD46: 22.7 | AE46: 20.5 | AF46: 18.4 | AG46: 241.1 | AH46: 259.1 | AI46: N | AJ46: 18 | AK46: 10 | AL46: 3 | AM46: Tenerife | AN46: 20.80833333 | AO46: A | AP46: SORIA | AQ46: 4 | AR46: 6 | AS46: 9 | AT46: 11 | AU46: 14 | AV46: 19 | AW46: 22 | AX46: 22 | AY46: 18 | AZ46: 13 | BA46: 8 | BB46: 5 | BC46: 12.6 | BD46: 2972.222222 | BE46: 3694.444444 | BF46: 5027.777778 | BG46: 5972.222222 | BH46: 7138.888889 | BI46: 7361.111111 | BJ46: 8138.888889 | BK46: 7388.888889 | BL46: 5888.888889 | BM46: 4500 | BN46: 3000 | BO46: 2583.333333 | BP46: 5 | BQ46: Centro de Estudios de la Energía (Ministerio de Industria y Energía)
A47: Teruel | B47: 6100 | C47: 8800 | D47: 12900 | E47: 16700 | F47: 18400 | G47: 20600 | H47: 21800 | I47: 20700 | J47: 16900 | K47: 11000 | L47: 7100 | M47: 5300 | N47: 915 | O47: 40.21 | P47: 40.35 | Q47: 14 | R47: 55 | S47: 32 | T47: -8 | U47: 1.6 | V47: 3.5 | W47: 6.7 | X47: 9.1 | Y47: 12.9 | Z47: 17.2 | AA47: 19.2 | AB47: 18.9 | AC47: 16.7 | AD47: 11.1 | AE47: 6.6 | AF47: 3.3 | AG47: 1509.6 | AH47: 1801.7 | AI47: SO | AJ47: 1 | AK47: 10 | AL47: -14 | AM47: Teruel | AN47: 10.56666667 | AO47: E | AP47: STA. C. TENERIFE | AQ47: 19 | AR47: 20 | AS47: 20 | AT47: 21 | AU47: 22 | AV47: 24 | AW47: 26 | AX47: 27 | AY47: 26 | AZ47: 25 | BA47: 23 | BB47: 20 | BC47: 22.8 | BD47: 1694.444444 | BE47: 2444.444444 | BF47: 3583.333333 | BG47: 4638.888889 | BH47: 5111.111111 | BI47: 5722.222222 | BJ47: 6055.555556 | BK47: 5750 | BL47: 4694.444444 | BM47: 3055.555556 | BN47: 1972.222222 | BO47: 1472.222222 | BP47: 0.2777777778 | BQ47: Centro de Estudios de la Energía (Ministerio de Industria y Energía)
A48: Toledo | B48: 6200 | C48: 9500 | D48: 14000 | E48: 19300 | F48: 21000 | G48: 24400 | H48: 27200 | I48: 24500 | J48: 18100 | K48: 11900 | L48: 7600 | M48: 5600 | N48: 540 | O48: 39.51 | P48: 39.85 | Q48: 16 | R48: 34 | S48: 34 | T48: -4 | U48: 5.9 | V48: 7.4 | W48: 10.6 | X48: 13.4 | Y48: 16.9 | Z48: 22.1 | AA48: 26.1 | AB48: 25.3 | AC48: 21.2 | AD48: 15.2 | AE48: 9.9 | AF48: 6.4 | AG48: 1089 | AH48: 1158 | AI48: E | AJ48: 5 | AK48: 10 | AL48: -9 | AM48: Toledo | AN48: 15.03333333 | AO48: C | AP48: TARRAGONA | AQ48: 11 | AR48: 12 | AS48: 14 | AT48: 16 | AU48: 19 | AV48: 22 | AW48: 25 | AX48: 26 | AY48: 23 | AZ48: 20 | BA48: 15 | BB48: 12 | BC48: 17.9 | BD48: 1722.222222 | BE48: 2638.888889 | BF48: 3888.888889 | BG48: 5361.111111 | BH48: 5833.333333 | BI48: 6777.777778 | BJ48: 7555.555556 | BK48: 6805.555556 | BL48: 5027.777778 | BM48: 3305.555556 | BN48: 2111.111111 | BO48: 1555.555556 | BP48: 1.388888889 | BQ48: Centro de Estudios de la Energía (Ministerio de Industria y Energía)
A49: Valencia | B49: 7600 | C49: 10600 | D49: 14900 | E49: 18100 | F49: 20600 | G49: 22800 | H49: 23800 | I49: 20700 | J49: 16700 | K49: 12000 | L49: 8700 | M49: 6600 | N49: 10 | O49: 39.29 | P49: 39.48 | Q49: 11.4 | R49: 68 | S49: 32 | T49: 0 | U49: 10.3 | V49: 11 | W49: 13.1 | X49: 14.8 | Y49: 17.8 | Z49: 21.9 | AA49: 23.9 | AB49: 24.5 | AC49: 22.4 | AD49: 18.3 | AE49: 14.4 | AF49: 11.1 | AG49: 509.9 | AH49: 515.9 | AI49: O | AJ49: 10 | AK49: 10 | AL49: -8 | AM49: Valencia | AN49: 16.95833333 | AO49: B | AP49: TERUEL | AQ49: 5 | AR49: 6 | AS49: 9 | AT49: 12 | AU49: 16 | AV49: 20 | AW49: 23 | AX49: 24 | AY49: 19 | AZ49: 14 | BA49: 9 | BB49: 6 | BC49: 13.6 | BD49: 2111.111111 | BE49: 2944.444444 | BF49: 4138.888889 | BG49: 5027.777778 | BH49: 5722.222222 | BI49: 6333.333333 | BJ49: 6611.111111 | BK49: 5750 | BL49: 4638.888889 | BM49: 3333.333333 | BN49: 2416.666667 | BO49: 1833.333333 | BP49: 2.777777778 | BQ49: Centro de Estudios de la Energía (Ministerio de Industria y Energía)
A50: Valladolid | B50: 5500 | C50: 8800 | D50: 13900 | E50: 17200 | F50: 19900 | G50: 22600 | H50: 25100 | I50: 23000 | J50: 18300 | K50: 11200 | L50: 6900 | M50: 4200 | N50: 694 | O50: 41.39 | P50: 41.65 | Q50: 13 | R50: 45 | S50: 33 | T50: -5 | U50: 3.3 | V50: 5.1 | W50: 8.6 | X50: 11 | Y50: 14.1 | Z50: 18.5 | AA50: 21.3 | AB50: 20.4 | AC50: 17.8 | AD50: 12.9 | AE50: 7.7 | AF50: 4.4 | AG50: 1444.1 | AH50: 1708.8 | AI50: SO | AJ50: 10 | AK50: 10 | AL50: -16 | AM50: Valladolid | AN50: 12.09166667 | AO50: D | AP50: TOLEDO | AQ50: 5 | AR50: 9 | AS50: 13 | AT50: 15 | AU50: 19 | AV50: 24 | AW50: 28 | AX50: 27 | AY50: 23 | AZ50: 17 | BA50: 12 | BB50: 8 | BC50: 16.9 | BD50: 1527.777778 | BE50: 2444.444444 | BF50: 3861.111111 | BG50: 4777.777778 | BH50: 5527.777778 | BI50: 6277.777778 | BJ50: 6972.222222 | BK50: 6388.888889 | BL50: 5083.333333 | BM50: 3111.111111 | BN50: 1916.666667 | BO50: 1166.666667 | BP50: 2.777777778 | BQ50: Centro de Estudios de la Energía (Ministerio de Industria y Energía)
A51: Vitoria | B51: 4458 | C51: 8422 | D51: 9998 | E51: 11400 | F51: 15312 | G51: 16878 | H51: 17628 | I51: 14634 | J51: 11556 | K51: 9270 | L51: 4916 | M51: 3216 | N51: 542 | O51: 42.51 | P51: 42.85 | Q51: 13 | R51: 70 | S51: 26 | T51: -4 | U51: 7.5 | V51: 11.4 | W51: 10.8 | X51: 11.5 | Y51: 13.7 | Z51: 16.2 | AA51: 18.4 | AB51: 19.3 | AC51: 18.3 | AD51: 15.8 | AE51: 11.9 | AF51: 12.2 | AG51: 1313.8 | AH51: 1599.6 | AI51: NE | AJ51: 7 | AK51: 10 | AL51: -18 | AM51: Vitoria | AN51: 13.91666667 | AO51: D | AP51: VALENCIA | AQ51: 12 | AR51: 13 | AS51: 15 | AT51: 17 | AU51: 20 | AV51: 23 | AW51: 26 | AX51: 27 | AY51: 24 | AZ51: 20 | BA51: 16 | BB51: 13 | BC51: 18.8 | BD51: 1238.333333 | BE51: 2339.444444 | BF51: 2777.222222 | BG51: 3166.666667 | BH51: 4253.333333 | BI51: 4688.333333 | BJ51: 4896.666667 | BK51: 4065 | BL51: 3210 | BM51: 2575 | BN51: 1365.555556 | BO51: 893.3333333 | BP51: 1.944444444 | BQ51: Centro de Estudios de la Energía (Ministerio de Industria y Energía)
A52: Vizcaya | B52: 5000 | C52: 7100 | D52: 10800 | E52: 12700 | F52: 15500 | G52: 16700 | H52: 17900 | I52: 15700 | J52: 13100 | K52: 9300 | L52: 6000 | M52: 4600 | N52: 32 | O52: 43.18 | P52: 43.3 | Q52: 8 | R52: 71 | S52: 30 | T52: 0 | U52: 7.8 | V52: 7.7 | W52: 10.7 | X52: 11.8 | Y52: 10.5 | Z52: 16.8 | AA52: 15.1 | AB52: 19 | AC52: 18.1 | AD52: 14.7 | AE52: 10.7 | AF52: 8 | AG52: 735.9 | AH52: 819.9 | AI52: NE | AJ52: 7 | AK52: 10 | AL52: -8 | AM52: Vizcaya | AN52: 12.575 | AO52: C | AP52: VALLADOLID | AQ52: 4 | AR52: 6 | AS52: 9 | AT52: 12 | AU52: 17 | AV52: 21 | AW52: 24 | AX52: 23 | AY52: 18 | AZ52: 13 | BA52: 8 | BB52: 4 | BC52: 13.3 | BD52: 1388.888889 | BE52: 1972.222222 | BF52: 3000 | BG52: 3527.777778 | BH52: 4305.555556 | BI52: 4638.888889 | BJ52: 4972.222222 | BK52: 4361.111111 | BL52: 3638.888889 | BM52: 2583.333333 | BN52: 1666.666667 | BO52: 1277.777778 | BP52: 1.944444444 | BQ52: Centro de Estudios de la Energía (Ministerio de Industria y Energía)
A53: Zamora | B53: 5400 | C53: 8900 | D53: 13200 | E53: 17300 | F53: 22200 | G53: 21600 | H53: 23500 | I53: 22000 | J53: 17200 | K53: 11100 | L53: 6700 | M53: 4600 | N53: 649 | O53: 41.3 | P53: 41.5 | Q53: 18 | R53: 65 | S53: 32 | T53: -6 | U53: 3.8 | V53: 5.3 | W53: 8.6 | X53: 11.2 | Y53: 14.2 | Z53: 18.6 | AA53: 21.6 | AB53: 21.2 | AC53: 18 | AD53: 12.8 | AE53: 7.5 | AF53: 4.3 | AG53: 1303.9 | AH53: 1501 | AI53: O | AJ53: 11 | AK53: 10 | AL53: -14 | AM53: Zamora | AN53: 12.25833333 | AO53: D | AP53: VIZCAYA | AQ53: 10 | AR53: 11 | AS53: 12 | AT53: 13 | AU53: 16 | AV53: 20 | AW53: 22 | AX53: 22 | AY53: 20 | AZ53: 16 | BA53: 13 | BB53: 18 | BC53: 15 | BD53: 1500 | BE53: 2472.222222 | BF53: 3666.666667 | BG53: 4805.555556 | BH53: 6166.666667 | BI53: 6000 | BJ53: 6527.777778 | BK53: 6111.111111 | BL53: 4777.777778 | BM53: 3083.333333 | BN53: 1861.111111 | BO53: 1277.777778 | BP53: 3.055555556 | BQ53: Centro de Estudios de la Energía (Ministerio de Industria y Energía)
A54: Zaragoza | B54: 6300 | C54: 9800 | D54: 15200 | E54: 18300 | F54: 21800 | G54: 24200 | H54: 25100 | I54: 23400 | J54: 18300 | K54: 12100 | L54: 7400 | M54: 5700 | N54: 200 | O54: 41.39 | P54: 41.65 | Q54: 14 | R54: 57 | S54: 34 | T54: -3 | U54: 6.1 | V54: 7.6 | W54: 11.3 | X54: 13.7 | Y54: 17 | Z54: 21.2 | AA54: 23.1 | AB54: 23.7 | AC54: 20.6 | AD54: 15.4 | AE54: 10.2 | AF54: 6.7 | AG54: 1069.5 | AH54: 1150.7 | AI54: NO | AJ54: 15 | AK54: 10 | AL54: -11 | AM54: Zaragoza | AN54: 14.71666667 | AO54: C | AP54: ZAMORA | AQ54: 6 | AR54: 7 | AS54: 11 | AT54: 13 | AU54: 16 | AV54: 21 | AW54: 24 | AX54: 23 | AY54: 20 | AZ54: 15 | BA54: 10 | BB54: 6 | BC54: 14.3 | BD54: 1750 | BE54: 2722.222222 | BF54: 4222.222222 | BG54: 5083.333333 | BH54: 6055.555556 | BI54: 6722.222222 | BJ54: 6972.222222 | BK54: 6500 | BL54: 5083.333333 | BM54: 3361.111111 | BN54: 2055.555556 | BO54: 1583.333333 | BP54: 4.166666667 | BQ54: Centro de Estudios de la Energía (Ministerio de Industria y Energía)
A55: nº DE MES | B55: 1 | C55: 2 | D55: 3 | E55: 4 | F55: 5 | G55: 6 | H55: 7 | I55: 8 | J55: 9 | K55: 10 | L55: 11 | M55: 12 | AP55: ZARAGOZA | AQ55: 8 | AR55: 10 | AS55: 13 | AT55: 16 | AU55: 19 | AV55: 23 | AW55: 26 | AX55: 26 | AY55: 23 | AZ55: 17 | BA55: 12 | BB55: 9 | BC55: 16.8
AP59: 40
B60: 1 | C60: 2 | D60: 3 | E60: 4 | F60: 5 | G60: 6 | H60: 7 | I60: 8 | J60: 9 | K60: 10 | L60: 11 | M60: 12 | N60: 13 | O60: 14 | P60: 15 | Q60: 16 | R60: 17 | S60: 18 | T60: 19 | U60: 20 | V60: 21 | W60: 22 | X60: 23 | Y60: 24 | Z60: 25 | AA60: 26 | AB60: 27 | AC60: 28 | AD60: 29 | AE60: 30 | AF60: 31 | AG60: 32 | AH60: 33 | AI60: 34 | AJ60: 35 | AK60: 36 | AL60: 37 | AM60: 38 | AO60: 39
C61: LATITUD = | D61: 28
B63: Latitud | C63: Inclinación | D63: ENE | E63: FEB | F63: MAR | G63: ABR | H63: MAY | I63: JUN | J63: JUL | K63: AGO | L63: SEP | M63: OCT | N63: NOV | O63: DIC
A64: 1 | B64: 2 | C64: 3 | D64: 4 | E64: 5 | F64: 6 | G64: 7 | H64: 8 | I64: 9 | J64: 10 | K64: 11 | L64: 12 | M64: 13 | N64: 14 | O64: 15
A65: 2800 | B65: 28 | C65: 0 | D65: 1 | E65: 1 | F65: 1 | G65: 1 | H65: 1 | I65: 1 | J65: 1 | K65: 1 | L65: 1 | M65: 1 | N65: 1 | O65: 1 | R65: 39.6 | S65: =ROUNDDOWN(R65,0) -> 39
A66: =A65+5 -> 2805 | B66: 28 | C66: 5 | D66: 1.05 | E66: 1.04 | F66: 1.03 | G66: 1.01 | H66: 1 | I66: 1 | J66: 1 | K66: 1.02 | L66: 1.03 | M66: 1.05 | N66: 1.06 | O66: 1.06
A67: 2810 | B67: 28 | C67: 10 | D67: 1.1 | E67: 1.08 | F67: 1.05 | G67: 1.02 | H67: 1 | I67: 0.99 | J67: 1 | K67: 1.02 | L67: 1.06 | M67: 1.1 | N67: 1.12 | O67: 1.12
A68: 2815 | B68: 28 | C68: 15 | D68: 1.14 | E68: 1.11 | F68: 1.07 | G68: 1.02 | H68: 0.99 | I68: 0.98 | J68: 0.99 | K68: 1.03 | L68: 1.08 | M68: 1.13 | N68: 1.17 | O68: 1.17
A69: 2820 | B69: 28 | C69: 20 | D69: 1.17 | E69: 1.13 | F69: 1.08 | G69: 1.02 | H69: 0.97 | I69: 0.95 | J69: 0.97 | K69: 1.02 | L69: 1.09 | M69: 1.16 | N69: 1.21 | O69: 1.21
A70: 2825 | B70: 28 | C70: 25 | D70: 1.2 | E70: 1.15 | F70: 1.08 | G70: 1 | H70: 0.95 | I70: 0.93 | J70: 0.95 | K70: 1.01 | L70: 1.09 | M70: 1.19 | N70: 1.25 | O70: 1.24
A71: 2830 | B71: 28 | C71: 30 | D71: 1.22 | E71: 1.15 | F71: 1.07 | G71: 0.98 | H71: 0.92 | I71: 0.89 | J71: 0.92 | K71: 0.99 | L71: 1.09 | M71: 1.2 | N71: 1.27 | O71: 1.27
A72: 2835 | B72: 28 | C72: 35 | D72: 1.23 | E72: 1.16 | F72: 1.06 | G72: 0.96 | H72: 0.88 | I72: 0.85 | J72: 0.88 | K72: 0.96 | L72: 1.08 | M72: 1.21 | N72: 1.29 | O72: 1.29
A73: 2840 | B73: 28 | C73: 40 | D73: 1.24 | E73: 1.15 | F73: 1.04 | G73: 0.92 | H73: 0.84 | I73: 0.8 | J73: 0.84 | K73: 0.93 | L73: 1.06 | M73: 1.21 | N73: 1.3 | O73: 1.3
A74: 2845 | B74: 28 | C74: 45 | D74: 1.23 | E74: 1.14 | F74: 1.01 | G74: 0.89 | H74: 0.79 | I74: 0.75 | J74: 0.79 | K74: 0.89 | L74: 1.04 | M74: 1.2 | N74: 1.3 | O74: 1.3
A75: 2850 | B75: 28 | C75: 50 | D75: 1.22 | E75: 1.12 | F75: 0.98 | G75: 0.84 | H75: 0.73 | I75: 0.69 | J75: 0.73 | K75: 0.84 | L75: 1 | M75: 1.18 | N75: 1.3 | O75: 1.3
A76: 2855 | B76: 28 | C76: 55 | D76: 1.2 | E76: 1.09 | F76: 0.94 | G76: 0.79 | H76: 0.68 | I76: 0.63 | J76: 0.67 | K76: 0.79 | L76: 0.96 | M76: 1.15 | N76: 1.28 | O76: 1.28
A77: 2860 | B77: 28 | C77: 60 | D77: 1.18 | E77: 1.05 | F77: 0.9 | G77: 0.73 | H77: 0.61 | I77: 0.57 | J77: 0.61 | K77: 0.73 | L77: 0.92 | M77: 1.12 | N77: 1.26 | O77: 1.26
A78: 2865 | B78: 28 | C78: 65 | D78: 1.14 | E78: 1.01 | F78: 0.85 | G78: 0.67 | H78: 0.55 | I78: 0.5 | J78: 0.54 | K78: 0.67 | L78: 0.86 | M78: 1.08 | N78: 1.22 | O78: 1.23
A79: 2870 | B79: 28 | C79: 70 | D79: 1.1 | E79: 0.97 | F79: 0.79 | G79: 0.61 | H79: 0.48 | I79: 0.42 | J79: 0.47 | K79: 0.6 | L79: 0.81 | M79: 1.03 | N79: 1.18 | O79: 1.19
A80: 2875 | B80: 28 | C80: 75 | D80: 1.06 | E80: 0.91 | F80: 0.73 | G80: 0.54 | H80: 0.4 | I80: 0.35 | J80: 0.39 | K80: 0.53 | L80: 0.74 | M80: 0.97 | N80: 1.14 | O80: 1.15
A81: 2880 | B81: 28 | C81: 80 | D81: 1 | E81: 0.86 | F81: 0.66 | G81: 0.47 | H81: 0.33 | I81: 0.27 | J81: 0.32 | K81: 0.46 | L81: 0.67 | M81: 0.91 | N81: 1.08 | O81: 1.1
A82: 2885 | B82: 28 | C82: 85 | D82: 0.94 | E82: 0.79 | F82: 0.59 | G82: 0.39 | H82: 0.25 | I82: 0.19 | J82: 0.24 | K82: 0.38 | L82: 0.6 | M82: 0.84 | N82: 1.02 | O82: 1.04
A83: 2890 | B83: 28 | C83: 90 | D83: 0.88 | E83: 0.72 | F83: 0.52 | G83: 0.32 | H83: 0.17 | I83: 0.11 | J83: 0.16 | K83: 0.31 | L83: 0.53 | M83: 0.77 | N83: 0.95 | O83: 0.98
A84: 2900 | B84: 29 | C84: 0 | D84: 1 | E84: 1 | F84: 1 | G84: 1 | H84: 1 | I84: 1 | J84: 1 | K84: 1 | L84: 1 | M84: 1 | N84: 1 | O84: 1
A85: =A84+5 -> 2905 | B85: 29 | C85: 5 | D85: 1.05 | E85: 1.04 | F85: 1.03 | G85: 1.02 | H85: 1 | I85: 1 | J85: 1 | K85: 1.02 | L85: 1.03 | M85: 1.05 | N85: 1.07 | O85: 1.06
A86: 2910 | B86: 29 | C86: 10 | D86: 1.1 | E86: 1.08 | F86: 1.05 | G86: 1.02 | H86: 1 | I86: 0.99 | J86: 1 | K86: 1.03 | L86: 1.06 | M86: 1.1 | N86: 1.12 | O86: 1.12
A87: 2915 | B87: 29 | C87: 15 | D87: 1.15 | E87: 1.11 | F87: 1.07 | G87: 1.03 | H87: 0.99 | I87: 0.98 | J87: 0.99 | K87: 1.03 | L87: 1.08 | M87: 1.14 | N87: 1.18 | O87: 1.17
A88: 2920 | B88: 29 | C88: 20 | D88: 1.18 | E88: 1.14 | F88: 1.08 | G88: 1.02 | H88: 0.98 | I88: 0.95 | J88: 0.98 | K88: 1.03 | L88: 1.1 | M88: 1.17 | N88: 1.22 | O88: 1.22
A89: 2925 | B89: 29 | C89: 25 | D89: 1.21 | E89: 1.15 | F89: 1.08 | G89: 1.01 | H89: 0.95 | I89: 0.93 | J89: 0.95 | K89: 1.01 | L89: 1.1 | M89: 1.2 | N89: 1.26 | O89: 1.25
A90: 2930 | B90: 29 | C90: 30 | D90: 1.23 | E90: 1.16 | F90: 1.08 | G90: 0.99 | H90: 0.92 | I90: 0.9 | J90: 0.92 | K90: 1 | L90: 1.1 | M90: 1.21 | N90: 1.28 | O90: 1.28
A91: 2935 | B91: 29 | C91: 35 | D91: 1.24 | E91: 1.17 | F91: 1.07 | G91: 0.97 | H91: 0.89 | I91: 0.86 | J91: 0.89 | K91: 0.97 | L91: 1.09 | M91: 1.22 | N91: 1.3 | O91: 1.3
A92: 2940 | B92: 29 | C92: 40 | D92: 1.25 | E92: 1.16 | F92: 1.05 | G92: 0.93 | H92: 0.85 | I92: 0.81 | J92: 0.85 | K92: 0.94 | L92: 1.07 | M92: 1.22 | N92: 1.32 | O92: 1.31
A93: 2945 | B93: 29 | C93: 45 | D93: 1.24 | E93: 1.15 | F93: 1.02 | G93: 0.9 | H93: 0.8 | I93: 0.76 | J93: 0.8 | K93: 0.9 | L93: 1.05 | M93: 1.21 | N93: 1.32 | O93: 1.32
A94: 2950 | B94: 29 | C94: 50 | D94: 1.23 | E94: 1.13 | F94: 0.99 | G94: 0.85 | H94: 0.75 | I94: 0.71 | J94: 0.74 | K94: 0.85 | L94: 1.02 | M94: 1.19 | N94: 1.31 | O94: 1.31
A95: 2955 | B95: 29 | C95: 55 | D95: 1.22 | E95: 1.1 | F95: 0.95 | G95: 0.8 | H95: 0.69 | I95: 0.64 | J95: 0.68 | K95: 0.8 | L95: 0.98 | M95: 1.17 | N95: 1.3 | O95: 1.3
A96: 2960 | B96: 29 | C96: 60 | D96: 1.19 | E96: 1.07 | F96: 0.91 | G96: 0.75 | H96: 0.63 | I96: 0.58 | J96: 0.62 | K96: 0.75 | L96: 0.93 | M96: 1.14 | N96: 1.28 | O96: 1.28
A97: 2965 | B97: 29 | C97: 65 | D97: 1.16 | E97: 1.03 | F97: 0.86 | G97: 0.69 | H97: 0.56 | I97: 0.51 | J97: 0.55 | K97: 0.69 | L97: 0.88 | M97: 1.1 | N97: 1.24 | O97: 1.25
A98: 2970 | B98: 29 | C98: 70 | D98: 1.12 | E98: 0.98 | F98: 0.8 | G98: 0.62 | H98: 0.49 | I98: 0.44 | J98: 0.48 | K98: 0.62 | L98: 0.82 | M98: 1.05 | N98: 1.2 | O98: 1.22
A99: 2975 | B99: 29 | C99: 75 | D99: 1.07 | E99: 0.93 | F99: 0.74 | G99: 0.55 | H99: 0.42 | I99: 0.36 | J99: 0.41 | K99: 0.55 | L99: 0.76 | M99: 0.99 | N99: 1.16 | O99: 1.17
A100: 2980 | B100: 29 | C100: 80 | D100: 1.02 | E100: 0.87 | F100: 0.68 | G100: 0.48 | H100: 0.34 | I100: 0.28 | J100: 0.33 | K100: 0.48 | L100: 0.69 | M100: 0.93 | N100: 1.1 | O100: 1.12
A101: 2985 | B101: 29 | C101: 85 | D101: 0.96 | E101: 0.81 | F101: 0.61 | G101: 0.41 | H101: 0.26 | I101: 0.21 | J101: 0.25 | K101: 0.4 | L101: 0.62 | M101: 0.87 | N101: 1.04 | O101: 1.06
A102: 2990 | B102: 29 | C102: 90 | D102: 0.9 | E102: 0.74 | F102: 0.54 | G102: 0.33 | H102: 0.18 | I102: 0.13 | J102: 0.17 | K102: 0.32 | L102: 0.54 | M102: 0.79 | N102: 0.97 | O102: 1
A103: 3400 | B103: 34 | C103: 0 | D103: 1 | E103: 1 | F103: 1 | G103: 1 | H103: 1 | I103: 1 | J103: 1 | K103: 1 | L103: 1 | M103: 1 | N103: 1 | O103: 1
A104: =A103+5 -> 3405 | B104: 34 | C104: 5 | D104: 1.06 | E104: 1.05 | F104: 1.04 | G104: 1.02 | H104: 1.01 | I104: 1.01 | J104: 1.01 | K104: 1.02 | L104: 1.04 | M104: 1.06 | N104: 1.08 | O104: 1.07
A105: 3410 | B105: 34 | C105: 10 | D105: 1.12 | E105: 1.1 | F105: 1.07 | G105: 1.04 | H105: 1.01 | I105: 1.01 | J105: 1.02 | K105: 1.04 | L105: 1.08 | M105: 1.12 | N105: 1.14 | O105: 1.14
A106: 3415 | B106: 34 | C106: 15 | D106: 1.17 | E106: 1.13 | F106: 1.09 | G106: 1.05 | H106: 1.01 | I106: 1 | J106: 1.01 | K106: 1.05 | L106: 1.11 | M106: 1.17 | N106: 1.21 | O106: 1.2 | P106: DIC
A107: 3420 | B107: 34 | C107: 20 | D107: 1.21 | E107: 1.16 | F107: 1.11 | G107: 1.05 | H107: 1 | I107: 0.98 | J107: 1 | K107: 1.05 | L107: 1.13 | M107: 1.21 | N107: 1.26 | O107: 1.25 | P107: 15
A108: 3425 | B108: 34 | C108: 25 | D108: 1.25 | E108: 1.19 | F108: 1.12 | G108: 1.04 | H108: 0.98 | I108: 0.96 | J108: 0.99 | K108: 1.05 | L108: 1.14 | M108: 1.24 | N108: 1.31 | O108: 1.3
A109: 3430 | B109: 34 | C109: 30 | D109: 1.27 | E109: 1.2 | F109: 1.12 | G109: 1.03 | H109: 0.96 | I109: 0.94 | J109: 0.95 | K109: 1.03 | L109: 1.14 | M109: 1.27 | N109: 1.34 | O109: 1.33
A110: 3435 | B110: 34 | C110: 35 | D110: 1.29 | E110: 1.21 | F110: 1.11 | G110: 1.01 | H110: 0.93 | I110: 0.9 | J110: 0.93 | K110: 1.01 | L110: 1.14 | M110: 1.28 | N110: 1.37 | O110: 1.36
A111: 3440 | B111: 34 | C111: 40 | D111: 1.31 | E111: 1.21 | F111: 1.1 | G111: 0.98 | H111: 0.89 | I111: 0.86 | J111: 0.89 | K111: 0.99 | L111: 1.13 | M111: 1.29 | N111: 1.39 | O111: 1.38
A112: 3445 | B112: 34 | C112: 45 | D112: 1.31 | E112: 1.21 | F112: 1.08 | G112: 0.95 | H112: 0.85 | I112: 0.81 | J112: 0.85 | K112: 0.95 | L112: 1.11 | M112: 1.19 | N112: 1.4 | O112: 1.4
A113: 3450 | B113: 34 | C113: 50 | D113: 1.31 | E113: 1.19 | F113: 1.05 | G113: 0.91 | H113: 0.8 | I113: 0.76 | J113: 0.8 | K113: 0.91 | L113: 1.09 | M113: 1.28 | N113: 1.41 | O113: 1.4
A114: 3455 | B114: 34 | C114: 55 | D114: 1.3 | E114: 1.17 | F114: 1.02 | G114: 0.86 | H114: 0.75 | I114: 0.7 | J114: 0.75 | K114: 0.87 | L114: 1.05 | M114: 1.26 | N114: 1.4 | O114: 1.39
A115: 3460 | B115: 34 | C115: 60 | D115: 1.28 | E115: 1.14 | F115: 0.98 | G115: 0.81 | H115: 0.69 | I115: 0.64 | J115: 0.69 | K115: 0.82 | L115: 1.01 | M115: 1.23 | N115: 1.38 | O115: 1.38
A116: 3465 | B116: 34 | C116: 65 | D116: 1.25 | E116: 1.11 | F116: 0.93 | G116: 0.75 | H116: 0.63 | I116: 0.58 | J116: 0.62 | K116: 0.76 | L116: 0.96 | M116: 1.2 | N116: 1.36 | O116: 1.36
A117: 3470 | B117: 34 | C117: 70 | D117: 1.21 | E117: 1.06 | F117: 0.88 | G117: 0.69 | H117: 0.56 | I117: 0.51 | J117: 0.55 | K117: 0.69 | L117: 0.91 | M117: 1.15 | N117: 1.32 | O117: 1.32
A118: 3475 | B118: 34 | C118: 75 | D118: 1.17 | E118: 1.01 | F118: 0.82 | G118: 0.63 | H118: 0.49 | I118: 0.43 | J118: 0.48 | K118: 0.63 | L118: 0.85 | M118: 1.1 | N118: 1.28 | O118: 1.28
A119: 3480 | B119: 34 | C119: 80 | D119: 1.12 | E119: 0.96 | F119: 0.76 | G119: 0.56 | H119: 0.41 | I119: 0.36 | J119: 0.41 | K119: 0.56 | L119: 0.78 | M119: 1.04 | N119: 1.23 | O119: 1.24
A120: 3485 | B120: 34 | C120: 85 | D120: 1.06 | E120: 0.9 | F120: 0.69 | G120: 0.48 | H120: 0.34 | I120: 0.28 | J120: 0.33 | K120: 0.48 | L120: 0.71 | M120: 0.98 | N120: 1.17 | O120: 1.18
A121: 3490 | B121: 34 | C121: 90 | D121: 1 | E121: 0.83 | F121: 0.62 | G121: 0.41 | H121: 0.26 | I121: 0.2 | J121: 0.25 | K121: 0.4 | L121: 0.64 | M121: 0.91 | N121: 1.1 | O121: 1.12
A122: 3500 | B122: 35 | C122: 0 | D122: 1 | E122: 1 | F122: 1 | G122: 1 | H122: 1 | I122: 1 | J122: 1 | K122: 1 | L122: 1 | M122: 1 | N122: 1 | O122: 1
A123: =A122+5 -> 3505 | B123: 35 | C123: 5 | D123: 1.06 | E123: 1.05 | F123: 1.04 | G123: 1.02 | H123: 1.01 | I123: 1.01 | J123: 1.01 | K123: 1.03 | L123: 1.04 | M123: 1.06 | N123: 1.08 | O123: 1.07
A124: 3510 | B124: 35 | C124: 10 | D124: 1.12 | E124: 1.1 | F124: 1.07 | G124: 1.04 | H124: 1.02 | I124: 1.01 | J124: 1.02 | K124: 1.04 | L124: 1.08 | M124: 1.12 | N124: 1.15 | O124: 1.14
A125: 3515 | B125: 35 | C125: 15 | D125: 1.17 | E125: 1.14 | F125: 1.09 | G125: 1.05 | H125: 1.02 | I125: 1 | J125: 1.02 | K125: 1.05 | L125: 1.11 | M125: 1.17 | N125: 1.21 | O125: 1.21
A126: 3520 | B126: 35 | C126: 20 | D126: 1.22 | E126: 1.17 | F126: 1.11 | G126: 1.05 | H126: 1.01 | I126: 0.99 | J126: 1.01 | K126: 1.06 | L126: 1.13 | M126: 1.22 | N126: 1.27 | O126: 1.26 | P126: 15
A127: 3525 | B127: 35 | C127: 25 | D127: 1.25 | E127: 1.2 | F127: 1.12 | G127: 1.05 | H127: 0.99 | I127: 0.97 | J127: 0.99 | K127: 1.05 | L127: 1.15 | M127: 1.25 | N127: 1.32 | O127: 1.31
A128: 3530 | B128: 35 | C128: 30 | D128: 1.28 | E128: 1.21 | F128: 1.13 | G128: 1.04 | H128: 0.97 | I128: 0.94 | J128: 0.97 | K128: 1.04 | L128: 1.15 | M128: 1.28 | N128: 1.36 | O128: 1.35
A129: 3535 | B129: 35 | C129: 35 | D129: 1.31 | E129: 1.22 | F129: 1.12 | G129: 1.02 | H129: 0.94 | I129: 0.91 | J129: 0.94 | K129: 1.02 | L129: 1.15 | M129: 1.29 | N129: 1.39 | O129: 1.38
A130: 3540 | B130: 35 | C130: 40 | D130: 1.32 | E130: 1.23 | F130: 1.11 | G130: 0.99 | H130: 0.9 | I130: 0.87 | J130: 0.9 | K130: 1 | L130: 1.14 | M130: 1.3 | N130: 1.41 | O130: 1.4
A131: 3545 | B131: 35 | C131: 45 | D131: 1.33 | E131: 1.22 | F131: 1.09 | G131: 0.96 | H131: 0.86 | I131: 0.82 | J131: 0.86 | K131: 0.97 | L131: 1.13 | M131: 1.3 | N131: 1.42 | O131: 1.41
A132: 3550 | B132: 35 | C132: 50 | D132: 1.32 | E132: 1.21 | F132: 1.07 | G132: 0.92 | H132: 0.81 | I132: 0.77 | J132: 0.81 | K132: 0.93 | L132: 1.1 | M132: 1.3 | N132: 1.43 | O132: 1.42
A133: 3555 | B133: 35 | C133: 55 | D133: 1.31 | E133: 1.19 | F133: 1.03 | G133: 0.87 | H133: 0.76 | I133: 0.72 | J133: 0.76 | K133: 0.88 | L133: 1.07 | M133: 1.28 | N133: 1.42 | O133: 1.41
A134: 3560 | B134: 35 | C134: 60 | D134: 1.29 | E134: 1.16 | F134: 0.99 | G134: 0.82 | H134: 0.7 | I134: 0.66 | J134: 0.7 | K134: 0.83 | L134: 1.03 | M134: 1.25 | N134: 1.41 | O134: 1.4
A135: 3565 | B135: 35 | C135: 65 | D135: 1.27 | E135: 1.12 | F135: 0.95 | G135: 0.77 | H135: 0.64 | I135: 0.59 | J135: 0.64 | K135: 0.77 | L135: 0.98 | M135: 1.22 | N135: 1.38 | O135: 1.38
A136: 3570 | B136: 35 | C136: 70 | D136: 1.23 | E136: 1.08 | F136: 0.9 | G136: 0.71 | H136: 0.57 | I136: 0.52 | J136: 0.57 | K136: 0.71 | L136: 0.93 | M136: 1.18 | N136: 1.35 | O136: 1.35
A137: 3575 | B137: 35 | C137: 75 | D137: 1.19 | E137: 1.03 | F137: 0.84 | G137: 0.64 | H137: 0.5 | I137: 0.45 | J137: 0.5 | K137: 0.64 | L137: 0.87 | M137: 1.13 | N137: 1.31 | O137: 1.31
A138: 3580 | B138: 35 | C138: 80 | D138: 1.14 | E138: 0.98 | F138: 0.78 | G138: 0.57 | H138: 0.43 | I138: 0.37 | J138: 0.42 | K138: 0.57 | L138: 0.8 | M138: 1.07 | N138: 1.26 | O138: 1.26
A139: 3585 | B139: 35 | C139: 85 | D139: 1.09 | E139: 0.92 | F139: 0.71 | G139: 0.5 | H139: 0.35 | I139: 0.29 | J139: 0.34 | K139: 0.5 | L139: 0.73 | M139: 1 | N139: 1.2 | O139: 1.21
A140: 3590 | B140: 35 | C140: 90 | D140: 1.02 | E140: 0.85 | F140: 0.64 | G140: 0.42 | H140: 0.27 | I140: 0.21 | J140: 0.26 | K140: 0.42 | L140: 0.66 | M140: 0.93 | N140: 1.13 | O140: 1.15
A141: 3600 | B141: 36 | C141: 0 | D141: 1 | E141: 1 | F141: 1 | G141: 1 | H141: 1 | I141: 1 | J141: 1 | K141: 1 | L141: 1 | M141: 1 | N141: 1 | O141: 1
A142: =A141+5 -> 3605 | B142: 36 | C142: 5 | D142: 1.07 | E142: 1.05 | F142: 1.04 | G142: 1.02 | H142: 1.01 | I142: 1.01 | J142: 1.01 | K142: 1.03 | L142: 1.05 | M142: 1.07 | N142: 1.08 | O142: 1.08
A143: 3610 | B143: 36 | C143: 10 | D143: 1.13 | E143: 1.1 | F143: 1.07 | G143: 1.04 | H143: 1.02 | I143: 1.01 | J143: 1.02 | K143: 1.05 | L143: 1.08 | M143: 1.13 | N143: 1.15 | O143: 1.15
A144: 3615 | B144: 36 | C144: 15 | D144: 1.18 | E144: 1.14 | F144: 1.1 | G144: 1.05 | H144: 1.02 | I144: 1.01 | J144: 1.02 | K144: 1.06 | L144: 1.12 | M144: 1.18 | N144: 1.22 | O144: 1.21
A145: 3620 | B145: 36 | C145: 20 | D145: 1.22 | E145: 1.18 | F145: 1.12 | G145: 1.06 | H145: 1.01 | I145: 0.99 | J145: 1.01 | K145: 1.06 | L145: 1.14 | M145: 1.22 | N145: 1.28 | O145: 1.27
A146: 3625 | B146: 36 | C146: 25 | D146: 1.26 | E146: 1.2 | F146: 1.13 | G146: 1.05 | H146: 1 | I146: 0.98 | J146: 1 | K146: 1.06 | L146: 1.16 | M146: 1.26 | N146: 1.33 | O146: 1.32
A147: 3630 | B147: 36 | C147: 30 | D147: 1.29 | E147: 1.22 | F147: 1.13 | G147: 1.04 | H147: 0.98 | I147: 0.95 | J147: 0.98 | K147: 1.05 | L147: 1.16 | M147: 1.29 | N147: 1.37 | O147: 1.36
A148: 3635 | B148: 36 | C148: 35 | D148: 1.32 | E148: 1.23 | F148: 1.13 | G148: 1.02 | H148: 0.95 | I148: 0.92 | J148: 0.95 | K148: 1.03 | L148: 1.16 | M148: 1.31 | N148: 1.4 | O148: 1.39
A149: 3640 | B149: 36 | C149: 40 | D149: 1.33 | E149: 1.24 | F149: 1.12 | G149: 1 | H149: 0.91 | I149: 0.88 | J149: 0.91 | K149: 1.01 | L149: 1.16 | M149: 1.32 | N149: 1.43 | O149: 1.41
A150: 3645 | B150: 36 | C150: 45 | D150: 1.34 | E150: 1.23 | F150: 1.1 | G150: 0.97 | H150: 0.87 | I150: 0.84 | J150: 0.87 | K150: 0.98 | L150: 1.14 | M150: 1.32 | N150: 1.44 | O150: 1.43 | P150: 15
A151: 3650 | B151: 36 | C151: 50 | D151: 1.34 | E151: 1.22 | F151: 1.08 | G151: 0.93 | H151: 0.82 | I151: 0.78 | J151: 0.82 | K151: 0.94 | L151: 1.12 | M151: 1.31 | N151: 1.45 | O151: 1.44
A152: 3655 | B152: 36 | C152: 55 | D152: 1.33 | E152: 1.2 | F152: 1.05 | G152: 0.89 | H152: 0.77 | I152: 0.73 | J152: 0.77 | K152: 0.9 | L152: 1.08 | M152: 1.3 | N152: 1.44 | O152: 1.43
A153: 3660 | B153: 36 | C153: 60 | D153: 1.31 | E153: 1.17 | F153: 1.01 | G153: 0.84 | H153: 0.71 | I153: 0.67 | J153: 0.71 | K153: 0.84 | L153: 1.05 | M153: 1.27 | N153: 1.43 | O153: 1.42
A154: 3665 | B154: 36 | C154: 65 | D154: 1.29 | E154: 1.14 | F154: 0.96 | G154: 0.78 | H154: 0.65 | I154: 0.6 | J154: 0.65 | K154: 0.79 | L154: 1 | M154: 1.24 | N154: 1.41 | O154: 1.4
A155: 3670 | B155: 36 | C155: 70 | D155: 1.25 | E155: 1.1 | F155: 0.91 | G155: 0.72 | H155: 0.59 | I155: 0.53 | J155: 0.58 | K155: 0.73 | L155: 0.95 | M155: 1.2 | N155: 1.37 | O155: 1.37
A156: 3675 | B156: 36 | C156: 75 | D156: 1.21 | E156: 1.05 | F156: 0.85 | G156: 0.66 | H156: 0.52 | I156: 0.46 | J156: 0.51 | K156: 0.66 | L156: 0.89 | M156: 1.15 | N156: 1.33 | O156: 1.33
A157: 3680 | B157: 36 | C157: 80 | D157: 1.16 | E157: 1 | F157: 0.79 | G157: 0.59 | H157: 0.44 | I157: 0.39 | J157: 0.44 | K157: 0.59 | L157: 0.82 | M157: 1.09 | N157: 1.28 | O157: 1.29
A158: 3685 | B158: 36 | C158: 85 | D158: 1.11 | E158: 0.94 | F158: 0.73 | G158: 0.52 | H158: 0.37 | I158: 0.31 | J158: 0.36 | K158: 0.51 | L158: 0.75 | M158: 1.03 | N158: 1.23 | O158: 1.23
A159: 3690 | B159: 36 | C159: 90 | D159: 1.05 | E159: 0.87 | F159: 0.65 | G159: 0.44 | H159: 0.29 | I159: 0.23 | J159: 0.28 | K159: 0.44 | L159: 0.68 | M159: 0.96 | N159: 1.16 | O159: 1.17
A160: 3700 | B160: 37 | C160: 0 | D160: 1 | E160: 1 | F160: 1 | G160: 1 | H160: 1 | I160: 1 | J160: 1 | K160: 1 | L160: 1 | M160: 1 | N160: 1 | O160: 1
A161: =A160+5 -> 3705 | B161: 37 | C161: 5 | D161: 1.07 | E161: 1.06 | F161: 1.04 | G161: 1.03 | H161: 1.01 | I161: 1.01 | J161: 1.02 | K161: 1.03 | L161: 1.05 | M161: 1.07 | N161: 1.08 | O161: 1.08
A162: 3710 | B162: 37 | C162: 10 | D162: 1.13 | E162: 1.1 | F162: 1.08 | G162: 1.05 | H162: 1.02 | I162: 1.01 | J162: 1.02 | K162: 1.05 | L162: 1.09 | M162: 1.13 | N162: 1.16 | O162: 1.15
A163: 3715 | B163: 37 | C163: 15 | D163: 1.18 | E163: 1.15 | F163: 1.1 | G163: 1.06 | H163: 1.02 | I163: 1.01 | J163: 1.02 | K163: 1.06 | L163: 1.12 | M163: 1.19 | N163: 1.23 | O163: 1.22
A164: 3720 | B164: 37 | C164: 20 | D164: 1.23 | E164: 1.18 | F164: 1.12 | G164: 1.06 | H164: 1.02 | I164: 1 | J164: 1.02 | K164: 1.07 | L164: 1.15 | M164: 1.23 | N164: 1.29 | O164: 1.28
A165: 3725 | B165: 37 | C165: 25 | D165: 1.27 | E165: 1.21 | F165: 1.14 | G165: 1.06 | H165: 1 | I165: 0.98 | J165: 1 | K165: 1.07 | L165: 1.16 | M165: 1.27 | N165: 1.34 | O165: 1.33
A166: 3730 | B166: 37 | C166: 30 | D166: 1.3 | E166: 1.23 | F166: 1.14 | G166: 1.05 | H166: 0.98 | I166: 0.96 | J166: 0.98 | K166: 1.06 | L166: 1.17 | M166: 1.3 | N166: 1.38 | O166: 1.37
A167: 3735 | B167: 37 | C167: 35 | D167: 1.33 | E167: 1.24 | F167: 1.14 | G167: 1.03 | H167: 0.96 | I167: 0.93 | J167: 0.96 | K167: 1.04 | L167: 1.17 | M167: 1.32 | N167: 1.42 | O167: 1.41
A168: 3740 | B168: 37 | C168: 40 | D168: 1.35 | E168: 1.25 | F168: 1.13 | G168: 1.01 | H168: 0.92 | I168: 0.89 | J168: 0.92 | K168: 1.02 | L168: 1.17 | M168: 1.34 | N168: 1.44 | O168: 1.43
A169: 3745 | B169: 37 | C169: 45 | D169: 1.35 | E169: 1.25 | F169: 1.11 | G169: 0.98 | H169: 0.88 | I169: 0.85 | J169: 0.88 | K169: 0.99 | L169: 1.15 | M169: 1.34 | N169: 1.46 | O169: 1.45
A170: 3750 | B170: 37 | C170: 50 | D170: 1.35 | E170: 1.24 | F170: 1.09 | G170: 0.94 | H170: 0.84 | I170: 0.8 | J170: 0.84 | K170: 0.95 | L170: 1.13 | M170: 1.33 | N170: 1.47 | O170: 1.46
A171: 3755 | B171: 37 | C171: 55 | D171: 1.35 | E171: 1.22 | F171: 1.06 | G171: 0.9 | H171: 0.78 | I171: 0.74 | J171: 0.78 | K171: 0.91 | L171: 1.1 | M171: 1.32 | N171: 1.47 | O171: 1.45
A172: 3760 | B172: 37 | C172: 60 | D172: 1.33 | E172: 1.19 | F172: 1.02 | G172: 0.85 | H172: 0.73 | I172: 0.68 | J172: 0.73 | K172: 0.86 | L172: 1.06 | M172: 1.3 | N172: 1.45 | O172: 1.44
A173: 3765 | B173: 37 | C173: 65 | D173: 1.31 | E173: 1.16 | F173: 0.98 | G173: 0.8 | H173: 0.67 | I173: 0.62 | J173: 0.66 | K173: 0.8 | L173: 1.02 | M173: 1.26 | N173: 1.43 | O173: 1.42
A174: 3770 | B174: 37 | C174: 70 | D174: 1.27 | E174: 1.12 | F174: 0.93 | G174: 0.74 | H174: 0.6 | I174: 0.55 | J174: 0.6 | K174: 0.74 | L174: 0.97 | M174: 1.22 | N174: 1.4 | O174: 1.4 | P174: 15
A175: 3775 | B175: 37 | C175: 75 | D175: 1.23 | E175: 1.07 | F175: 0.87 | G175: 0.67 | H175: 0.53 | I175: 0.48 | J175: 0.53 | K175: 0.68 | L175: 0.91 | M175: 1.17 | N175: 1.36 | O175: 1.36
A176: 3780 | B176: 37 | C176: 80 | D176: 1.19 | E176: 1.02 | F176: 0.81 | G176: 0.6 | H176: 0.46 | I176: 0.4 | J176: 0.45 | K176: 0.6 | L176: 0.84 | M176: 1.12 | N176: 1.31 | O176: 1.31
A177: 3785 | B177: 37 | C177: 85 | D177: 1.13 | E177: 0.96 | F177: 0.74 | G177: 0.53 | H177: 0.38 | I177: 0.32 | J177: 0.38 | K177: 0.53 | L177: 0.77 | M177: 1.05 | N177: 1.26 | O177: 1.26
A178: 3790 | B178: 37 | C178: 90 | D178: 1.07 | E178: 0.89 | F178: 0.67 | G178: 0.46 | H178: 0.3 | I178: 0.25 | J178: 0.3 | K178: 0.45 | L178: 0.7 | M178: 0.98 | N178: 1.19 | O178: 1.2
A179: 3800 | B179: 38 | C179: 0 | D179: 1 | E179: 1 | F179: 1 | G179: 1 | H179: 1 | I179: 1 | J179: 1 | K179: 1 | L179: 1 | M179: 1 | N179: 1 | O179: 1
A180: =A179+5 -> 3805 | B180: 38 | C180: 5 | D180: 1.07 | E180: 1.06 | F180: 1.04 | G180: 1.03 | H180: 1.02 | I180: 1.01 | J180: 1.02 | K180: 1.03 | L180: 1.05 | M180: 1.07 | N180: 1.08 | O180: 1.08
A181: 3810 | B181: 38 | C181: 10 | D181: 1.13 | E181: 1.11 | F181: 1.08 | G181: 1.05 | H181: 1.02 | I181: 1.02 | J181: 1.03 | K181: 1.05 | L181: 1.09 | M181: 1.14 | N181: 1.16 | O181: 1.16
A182: 3815 | B182: 38 | C182: 15 | D182: 1.19 | E182: 1.15 | F182: 1.11 | G182: 1.06 | H182: 1.03 | I182: 1.01 | J182: 1.03 | K182: 1.07 | L182: 1.13 | M182: 1.19 | N182: 1.23 | O182: 1.22
A183: 3820 | B183: 38 | C183: 20 | D183: 1.24 | E183: 1.19 | F183: 1.13 | G183: 1.07 | H183: 1.02 | I183: 1.01 | J183: 1.02 | K183: 1.07 | L183: 1.15 | M183: 1.24 | N183: 1.3 | O183: 1.29
A184: 3825 | B184: 38 | C184: 25 | D184: 1.28 | E184: 1.22 | F184: 1.14 | G184: 1.07 | H184: 1.01 | I184: 0.99 | J184: 1.01 | K184: 1.08 | L184: 1.17 | M184: 1.28 | N184: 1.35 | O184: 1.34
A185: 3830 | B185: 38 | C185: 30 | D185: 1.31 | E185: 1.24 | F185: 1.15 | G185: 1.06 | H185: 0.99 | I185: 0.97 | J185: 0.99 | K185: 1.07 | L185: 1.18 | M185: 1.31 | N185: 1.4 | O185: 1.38
A186: 3835 | B186: 38 | C186: 35 | D186: 1.34 | E186: 1.25 | F186: 1.15 | G186: 1.04 | H186: 0.96 | I186: 0.94 | J186: 0.97 | K186: 1.05 | L186: 1.19 | M186: 1.34 | N186: 1.43 | O186: 1.42
A187: 3840 | B187: 38 | C187: 40 | D187: 1.36 | E187: 1.26 | F187: 1.14 | G187: 1.02 | H187: 0.93 | I187: 0.9 | J187: 0.93 | K187: 1.03 | L187: 1.18 | M187: 1.35 | N187: 1.46 | O187: 1.45
A188: 3845 | B188: 38 | C188: 45 | D188: 1.37 | E188: 1.26 | F188: 1.13 | G188: 0.99 | H188: 0.89 | I188: 0.86 | J188: 0.89 | K188: 1 | L188: 1.17 | M188: 1.36 | N188: 1.48 | O188: 1.47
A189: 3850 | B189: 38 | C189: 50 | D189: 1.37 | E189: 1.25 | F189: 1.1 | G189: 0.95 | H189: 0.85 | I189: 0.81 | J189: 0.85 | K189: 0.97 | L189: 1.15 | M189: 1.35 | N189: 1.49 | O189: 1.48
A190: 3855 | B190: 38 | C190: 55 | D190: 1.36 | E190: 1.23 | F190: 1.07 | G190: 0.91 | H190: 0.8 | I190: 0.75 | J190: 0.8 | K190: 0.92 | L190: 1.12 | M190: 1.34 | N190: 1.49 | O190: 1.48
A191: 3860 | B191: 38 | C191: 60 | D191: 1.35 | E191: 1.21 | F191: 1.04 | G191: 0.86 | H191: 0.74 | I191: 0.69 | J191: 0.74 | K191: 0.87 | L191: 1.08 | M191: 1.32 | N191: 1.48 | O191: 1.47
A192: 3865 | B192: 38 | C192: 65 | D192: 1.33 | E192: 1.18 | F192: 0.99 | G192: 0.81 | H192: 0.68 | I192: 0.63 | J192: 0.68 | K192: 0.82 | L192: 1.04 | M192: 1.29 | N192: 1.46 | O192: 1.45
A193: 3870 | B193: 38 | C193: 70 | D193: 1.29 | E193: 1.14 | F193: 0.94 | G193: 0.75 | H193: 0.61 | I193: 0.56 | J193: 0.61 | K193: 0.76 | L193: 0.98 | M193: 1.25 | N193: 1.43 | O193: 1.42
A194: 3875 | B194: 38 | C194: 75 | D194: 1.25 | E194: 1.09 | F194: 0.89 | G194: 0.69 | H194: 0.54 | I194: 0.49 | J194: 0.54 | K194: 0.69 | L194: 0.93 | M194: 1.2 | N194: 1.39 | O194: 1.39
A195: 3880 | B195: 38 | C195: 80 | D195: 1.21 | E195: 1.04 | F195: 0.83 | G195: 0.62 | H195: 0.47 | I195: 0.42 | J195: 0.47 | K195: 0.62 | L195: 0.86 | M195: 1.14 | N195: 1.34 | O195: 1.34
A196: 3885 | B196: 38 | C196: 85 | D196: 1.15 | E196: 0.98 | F196: 0.76 | G196: 0.55 | H196: 0.4 | I196: 0.34 | J196: 0.39 | K196: 0.55 | L196: 0.79 | M196: 1.08 | N196: 1.29 | O196: 1.29
A197: 3890 | B197: 38 | C197: 90 | D197: 1.09 | E197: 0.91 | F197: 0.69 | G197: 0.47 | H197: 0.32 | I197: 0.26 | J197: 0.31 | K197: 0.47 | L197: 0.72 | M197: 1.01 | N197: 1.22 | O197: 1.23
A198: 3900 | B198: 39 | C198: 0 | D198: 1 | E198: 1 | F198: 1 | G198: 1 | H198: 1 | I198: 1 | J198: 1 | K198: 1 | L198: 1 | M198: 1 | N198: 1 | O198: 1
A199: =A198+5 -> 3905 | B199: 39 | C199: 5 | D199: 1.07 | E199: 1.06 | F199: 1.04 | G199: 1.03 | H199: 1.02 | I199: 1.01 | J199: 1.02 | K199: 1.03 | L199: 1.05 | M199: 1.07 | N199: 1.09 | O199: 1.08
A200: 3910 | B200: 39 | C200: 10 | D200: 1.14 | E200: 1.11 | F200: 1.08 | G200: 1.05 | H200: 1.03 | I200: 1.02 | J200: 1.03 | K200: 1.06 | L200: 1.1 | M200: 1.14 | N200: 1.17 | O200: 1.16
A201: 3915 | B201: 39 | C201: 15 | D201: 1.19 | E201: 1.16 | F201: 1.11 | G201: 1.07 | H201: 1.03 | I201: 1.02 | J201: 1.03 | K201: 1.07 | L201: 1.13 | M201: 1.2 | N201: 1.24 | O201: 1.23
A202: 3920 | B202: 39 | C202: 20 | D202: 1.25 | E202: 1.2 | F202: 1.14 | G202: 1.07 | H202: 1.03 | I202: 1.01 | J202: 1.03 | K202: 1.08 | L202: 1.11 | M202: 1.25 | N202: 1.31 | O202: 1.29
A203: 3925 | B203: 39 | C203: 25 | D203: 1.29 | E203: 1.23 | F203: 1.15 | G203: 1.07 | H203: 1.02 | I203: 1 | J203: 1.02 | K203: 1.08 | L203: 1.18 | M203: 1.29 | N203: 1.36 | O203: 1.35
A204: 3930 | B204: 39 | C204: 30 | D204: 1.33 | E204: 1.25 | F204: 1.16 | G204: 1.07 | H204: 1 | I204: 0.97 | J204: 1 | K204: 1.08 | L204: 1.19 | M204: 1.33 | N204: 1.41 | O204: 1.4
... 88 more rows

Sheet GRÀFICA (hidden)
C7: MESOS | D7: Tm | E7: Ta | F7: Tg | G7: Ts | J7: Prof | K7: ξ | L7: Tg
C8: Gen | D8: ='2.CLIMA'!I12 -> 9.4 | E8: =D8+('2.CLIMA'!$K$19-D8)*COS((2*PI()*((365*3600)/PARÀMETRES!$D$38))) -> 30.26399785 | F8: =D20+(D8-D20)*EXP(-('4.CONDUCTES'!$E$26/(SQRT(('3.TERRENY'!$K$19*PARÀMETRES!$D$38)/(PI()*'3.TERRENY'!$K$16*'3.TERRENY'!$K$22)))))*COS((2*PI()*(1/PARÀMETRES!$D$38))-('4.CONDUCTES'!$E$26/(SQRT(('3.TERRENY'!$K$19*PARÀMETRES!$D$38)/(PI()*'3.TERRENY'!$K$16*'3.TERRENY'!$K$22))))) -> 14.23412018 | G8: =F8-(F8-D8)*EXP(-((3600*'5.CÀLCUL'!$M$23*PI()*'4.CONDUCTES'!$E$30*'4.CONDUCTES'!$E$28)/(PARÀMETRES!$D$30*PARÀMETRES!$D$31*'5.CÀLCUL'!$H$28))) -> 10.47109468 | J8: 0 | K8: =J8/(SQRT(('3.TERRENY'!$K$19*PARÀMETRES!$D$38)/(PI()*'3.TERRENY'!$K$16*'3.TERRENY'!$K$22))) -> 0 | L8: =$D$20+('5.CÀLCUL'!$M$8-$D$20)*(EXP(-($K8))*COS((2*PI()*(1/PARÀMETRES!$D$38))-($K8))) -> 31
C9: Feb | D9: ='2.CLIMA'!I13 -> 9.9 | E9: =D9+('2.CLIMA'!$K$19-D9)*COS((2*PI()*((365*3600)/PARÀMETRES!$D$38))) -> 30.28103493 | F9: =$D$20+(D9-$D$20)*EXP(-('4.CONDUCTES'!$E$26/(SQRT(('3.TERRENY'!$K$19*PARÀMETRES!$D$38)/(PI()*'3.TERRENY'!$K$16*'3.TERRENY'!$K$22)))))*COS((2*PI()*(1/PARÀMETRES!$D$38))-('4.CONDUCTES'!$E$26/(SQRT(('3.TERRENY'!$K$19*PARÀMETRES!$D$38)/(PI()*'3.TERRENY'!$K$16*'3.TERRENY'!$K$22))))) -> 14.38964605 | G9: =F9-(F9-D9)*EXP(-((3600*'5.CÀLCUL'!$M$23*PI()*'4.CONDUCTES'!$E$30*'4.CONDUCTES'!$E$28)/(PARÀMETRES!$D$30*PARÀMETRES!$D$31*'5.CÀLCUL'!$H$28))) -> 10.89476965 | J9: 1 | K9: =J9/(SQRT(('3.TERRENY'!$K$19*PARÀMETRES!$D$38)/(PI()*'3.TERRENY'!$K$16*'3.TERRENY'!$K$22))) -> 0.401575446 | L9: =$D$20+('5.CÀLCUL'!$M$8-$D$20)*(EXP(-($K9))*COS((2*PI()*(1/PARÀMETRES!$D$38))-($K9))) -> 25.40032685
C10: Mar | D10: ='2.CLIMA'!I14 -> 12.3 | E10: =D10+('2.CLIMA'!$K$19-D10)*COS((2*PI()*((365*3600)/PARÀMETRES!$D$38))) -> 30.36281295 | F10: =$D$20+(D10-$D$20)*EXP(-('4.CONDUCTES'!$E$26/(SQRT(('3.TERRENY'!$K$19*PARÀMETRES!$D$38)/(PI()*'3.TERRENY'!$K$16*'3.TERRENY'!$K$22)))))*COS((2*PI()*(1/PARÀMETRES!$D$38))-('4.CONDUCTES'!$E$26/(SQRT(('3.TERRENY'!$K$19*PARÀMETRES!$D$38)/(PI()*'3.TERRENY'!$K$16*'3.TERRENY'!$K$22))))) -> 15.13617027 | G10: =F10-(F10-D10)*EXP(-((3600*'5.CÀLCUL'!$M$23*PI()*'4.CONDUCTES'!$E$30*'4.CONDUCTES'!$E$28)/(PARÀMETRES!$D$30*PARÀMETRES!$D$31*'5.CÀLCUL'!$H$28))) -> 12.92840947 | J10: 2 | K10: =J10/(SQRT(('3.TERRENY'!$K$19*PARÀMETRES!$D$38)/(PI()*'3.TERRENY'!$K$16*'3.TERRENY'!$K$22))) -> 0.8031508921 | L10: =$D$20+('5.CÀLCUL'!$M$8-$D$20)*(EXP(-($K10))*COS((2*PI()*(1/PARÀMETRES!$D$38))-($K10))) -> 20.95283811
C11: Abr | D11: ='2.CLIMA'!I15 -> 14.6 | E11: =D11+('2.CLIMA'!$K$19-D11)*COS((2*PI()*((365*3600)/PARÀMETRES!$D$38))) -> 30.44118355 | F11: =$D$20+(D11-$D$20)*EXP(-('4.CONDUCTES'!$E$26/(SQRT(('3.TERRENY'!$K$19*PARÀMETRES!$D$38)/(PI()*'3.TERRENY'!$K$16*'3.TERRENY'!$K$22)))))*COS((2*PI()*(1/PARÀMETRES!$D$38))-('4.CONDUCTES'!$E$26/(SQRT(('3.TERRENY'!$K$19*PARÀMETRES!$D$38)/(PI()*'3.TERRENY'!$K$16*'3.TERRENY'!$K$22))))) -> 15.85158931 | G11: =F11-(F11-D11)*EXP(-((3600*'5.CÀLCUL'!$M$23*PI()*'4.CONDUCTES'!$E$30*'4.CONDUCTES'!$E$28)/(PARÀMETRES!$D$30*PARÀMETRES!$D$31*'5.CÀLCUL'!$H$28))) -> 14.8773143 | J11: 3 | K11: =J11/(SQRT(('3.TERRENY'!$K$19*PARÀMETRES!$D$38)/(PI()*'3.TERRENY'!$K$16*'3.TERRENY'!$K$22))) -> 1.204726338 | L11: =$D$20+('5.CÀLCUL'!$M$8-$D$20)*(EXP(-($K11))*COS((2*PI()*(1/PARÀMETRES!$D$38))-($K11))) -> 17.98151296
C12: Mai | D12: ='2.CLIMA'!I16 -> 17.7 | E12: =D12+('2.CLIMA'!$K$19-D12)*COS((2*PI()*((365*3600)/PARÀMETRES!$D$38))) -> 30.54681349 | F12: =$D$20+(D12-$D$20)*EXP(-('4.CONDUCTES'!$E$26/(SQRT(('3.TERRENY'!$K$19*PARÀMETRES!$D$38)/(PI()*'3.TERRENY'!$K$16*'3.TERRENY'!$K$22)))))*COS((2*PI()*(1/PARÀMETRES!$D$38))-('4.CONDUCTES'!$E$26/(SQRT(('3.TERRENY'!$K$19*PARÀMETRES!$D$38)/(PI()*'3.TERRENY'!$K$16*'3.TERRENY'!$K$22))))) -> 16.81584975 | G12: =F12-(F12-D12)*EXP(-((3600*'5.CÀLCUL'!$M$23*PI()*'4.CONDUCTES'!$E$30*'4.CONDUCTES'!$E$28)/(PARÀMETRES!$D$30*PARÀMETRES!$D$31*'5.CÀLCUL'!$H$28))) -> 17.50409907 | J12: 4 | K12: =J12/(SQRT(('3.TERRENY'!$K$19*PARÀMETRES!$D$38)/(PI()*'3.TERRENY'!$K$16*'3.TERRENY'!$K$22))) -> 1.606301784 | L12: =$D$20+('5.CÀLCUL'!$M$8-$D$20)*(EXP(-($K12))*COS((2*PI()*(1/PARÀMETRES!$D$38))-($K12))) -> 16.31280621
C13: Jun | D13: ='2.CLIMA'!I17 -> 21.6 | E13: =D13+('2.CLIMA'!$K$19-D13)*COS((2*PI()*((365*3600)/PARÀMETRES!$D$38))) -> 30.67970277 | F13: =$D$20+(D13-$D$20)*EXP(-('4.CONDUCTES'!$E$26/(SQRT(('3.TERRENY'!$K$19*PARÀMETRES!$D$38)/(PI()*'3.TERRENY'!$K$16*'3.TERRENY'!$K$22)))))*COS((2*PI()*(1/PARÀMETRES!$D$38))-('4.CONDUCTES'!$E$26/(SQRT(('3.TERRENY'!$K$19*PARÀMETRES!$D$38)/(PI()*'3.TERRENY'!$K$16*'3.TERRENY'!$K$22))))) -> 18.0289516 | G13: =F13-(F13-D13)*EXP(-((3600*'5.CÀLCUL'!$M$23*PI()*'4.CONDUCTES'!$E$30*'4.CONDUCTES'!$E$28)/(PARÀMETRES!$D$30*PARÀMETRES!$D$31*'5.CÀLCUL'!$H$28))) -> 20.80876378 | J13: 5 | K13: =J13/(SQRT(('3.TERRENY'!$K$19*PARÀMETRES!$D$38)/(PI()*'3.TERRENY'!$K$16*'3.TERRENY'!$K$22))) -> 2.00787723 | L13: =$D$20+('5.CÀLCUL'!$M$8-$D$20)*(EXP(-($K13))*COS((2*PI()*(1/PARÀMETRES!$D$38))-($K13))) -> 15.58778718
C14: Jul | D14: ='2.CLIMA'!I18 -> 24.4 | E14: =D14+('2.CLIMA'!$K$19-D14)*COS((2*PI()*((365*3600)/PARÀMETRES!$D$38))) -> 30.77511045 | F14: =$D$20+(D14-$D$20)*EXP(-('4.CONDUCTES'!$E$26/(SQRT(('3.TERRENY'!$K$19*PARÀMETRES!$D$38)/(PI()*'3.TERRENY'!$K$16*'3.TERRENY'!$K$22)))))*COS((2*PI()*(1/PARÀMETRES!$D$38))-('4.CONDUCTES'!$E$26/(SQRT(('3.TERRENY'!$K$19*PARÀMETRES!$D$38)/(PI()*'3.TERRENY'!$K$16*'3.TERRENY'!$K$22))))) -> 18.89989652 | G14: =F14-(F14-D14)*EXP(-((3600*'5.CÀLCUL'!$M$23*PI()*'4.CONDUCTES'!$E$30*'4.CONDUCTES'!$E$28)/(PARÀMETRES!$D$30*PARÀMETRES!$D$31*'5.CÀLCUL'!$H$28))) -> 23.18134358 | J14: 6 | K14: =J14/(SQRT(('3.TERRENY'!$K$19*PARÀMETRES!$D$38)/(PI()*'3.TERRENY'!$K$16*'3.TERRENY'!$K$22))) -> 2.409452676 | L14: =$D$20+('5.CÀLCUL'!$M$8-$D$20)*(EXP(-($K14))*COS((2*PI()*(1/PARÀMETRES!$D$38))-($K14))) -> 15.44197077
C15: Ago | D15: ='2.CLIMA'!I19 -> 24.2 | E15: =D15+('2.CLIMA'!$K$19-D15)*COS((2*PI()*((365*3600)/PARÀMETRES!$D$38))) -> 30.76829562 | F15: =$D$20+(D15-$D$20)*EXP(-('4.CONDUCTES'!$E$26/(SQRT(('3.TERRENY'!$K$19*PARÀMETRES!$D$38)/(PI()*'3.TERRENY'!$K$16*'3.TERRENY'!$K$22)))))*COS((2*PI()*(1/PARÀMETRES!$D$38))-('4.CONDUCTES'!$E$26/(SQRT(('3.TERRENY'!$K$19*PARÀMETRES!$D$38)/(PI()*'3.TERRENY'!$K$16*'3.TERRENY'!$K$22))))) -> 18.83768617 | G15: =F15-(F15-D15)*EXP(-((3600*'5.CÀLCUL'!$M$23*PI()*'4.CONDUCTES'!$E$30*'4.CONDUCTES'!$E$28)/(PARÀMETRES!$D$30*PARÀMETRES!$D$31*'5.CÀLCUL'!$H$28))) -> 23.01187359 | J15: 7 | K15: =J15/(SQRT(('3.TERRENY'!$K$19*PARÀMETRES!$D$38)/(PI()*'3.TERRENY'!$K$16*'3.TERRENY'!$K$22))) -> 2.811028122 | L15: =$D$20+('5.CÀLCUL'!$M$8-$D$20)*(EXP(-($K15))*COS((2*PI()*(1/PARÀMETRES!$D$38))-($K15))) -> 15.58706562
C16: Set | D16: ='2.CLIMA'!I20 -> 21.7 | E16: =D16+('2.CLIMA'!$K$19-D16)*COS((2*PI()*((365*3600)/PARÀMETRES!$D$38))) -> 30.68311018 | F16: =$D$20+(D16-$D$20)*EXP(-('4.CONDUCTES'!$E$26/(SQRT(('3.TERRENY'!$K$19*PARÀMETRES!$D$38)/(PI()*'3.TERRENY'!$K$16*'3.TERRENY'!$K$22)))))*COS((2*PI()*(1/PARÀMETRES!$D$38))-('4.CONDUCTES'!$E$26/(SQRT(('3.TERRENY'!$K$19*PARÀMETRES!$D$38)/(PI()*'3.TERRENY'!$K$16*'3.TERRENY'!$K$22))))) -> 18.06005678 | G16: =F16-(F16-D16)*EXP(-((3600*'5.CÀLCUL'!$M$23*PI()*'4.CONDUCTES'!$E$30*'4.CONDUCTES'!$E$28)/(PARÀMETRES!$D$30*PARÀMETRES!$D$31*'5.CÀLCUL'!$H$28))) -> 20.89349878 | J16: 8 | K16: =J16/(SQRT(('3.TERRENY'!$K$19*PARÀMETRES!$D$38)/(PI()*'3.TERRENY'!$K$16*'3.TERRENY'!$K$22))) -> 3.212603568 | L16: =$D$20+('5.CÀLCUL'!$M$8-$D$20)*(EXP(-($K16))*COS((2*PI()*(1/PARÀMETRES!$D$38))-($K16))) -> 15.83114239
C17: Oct | D17: ='2.CLIMA'!I21 -> 17.5 | E17: =D17+('2.CLIMA'!$K$19-D17)*COS((2*PI()*((365*3600)/PARÀMETRES!$D$38))) -> 30.53999865 | F17: =$D$20+(D17-$D$20)*EXP(-('4.CONDUCTES'!$E$26/(SQRT(('3.TERRENY'!$K$19*PARÀMETRES!$D$38)/(PI()*'3.TERRENY'!$K$16*'3.TERRENY'!$K$22)))))*COS((2*PI()*(1/PARÀMETRES!$D$38))-('4.CONDUCTES'!$E$26/(SQRT(('3.TERRENY'!$K$19*PARÀMETRES!$D$38)/(PI()*'3.TERRENY'!$K$16*'3.TERRENY'!$K$22))))) -> 16.7536394 | G17: =F17-(F17-D17)*EXP(-((3600*'5.CÀLCUL'!$M$23*PI()*'4.CONDUCTES'!$E$30*'4.CONDUCTES'!$E$28)/(PARÀMETRES!$D$30*PARÀMETRES!$D$31*'5.CÀLCUL'!$H$28))) -> 17.33462909 | J17: 9 | K17: =J17/(SQRT(('3.TERRENY'!$K$19*PARÀMETRES!$D$38)/(PI()*'3.TERRENY'!$K$16*'3.TERRENY'!$K$22))) -> 3.614179014 | L17: =$D$20+('5.CÀLCUL'!$M$8-$D$20)*(EXP(-($K17))*COS((2*PI()*(1/PARÀMETRES!$D$38))-($K17))) -> 16.06686566
C18: Nov | D18: ='2.CLIMA'!I22 -> 13.5 | E18: =D18+('2.CLIMA'!$K$19-D18)*COS((2*PI()*((365*3600)/PARÀMETRES!$D$38))) -> 30.40370196 | F18: =$D$20+(D18-$D$20)*EXP(-('4.CONDUCTES'!$E$26/(SQRT(('3.TERRENY'!$K$19*PARÀMETRES!$D$38)/(PI()*'3.TERRENY'!$K$16*'3.TERRENY'!$K$22)))))*COS((2*PI()*(1/PARÀMETRES!$D$38))-('4.CONDUCTES'!$E$26/(SQRT(('3.TERRENY'!$K$19*PARÀMETRES!$D$38)/(PI()*'3.TERRENY'!$K$16*'3.TERRENY'!$K$22))))) -> 15.50943238 | G18: =F18-(F18-D18)*EXP(-((3600*'5.CÀLCUL'!$M$23*PI()*'4.CONDUCTES'!$E$30*'4.CONDUCTES'!$E$28)/(PARÀMETRES!$D$30*PARÀMETRES!$D$31*'5.CÀLCUL'!$H$28))) -> 13.94522938 | J18: 10 | K18: =J18/(SQRT(('3.TERRENY'!$K$19*PARÀMETRES!$D$38)/(PI()*'3.TERRENY'!$K$16*'3.TERRENY'!$K$22))) -> 4.01575446 | L18: =$D$20+('5.CÀLCUL'!$M$8-$D$20)*(EXP(-($K18))*COS((2*PI()*(1/PARÀMETRES!$D$38))-($K18))) -> 16.24796152
C19: Des | D19: ='2.CLIMA'!I23 -> 10.2 | E19: =D19+('2.CLIMA'!$K$19-D19)*COS((2*PI()*((365*3600)/PARÀMETRES!$D$38))) -> 30.29125719 | F19: =$D$20+(D19-$D$20)*EXP(-('4.CONDUCTES'!$E$26/(SQRT(('3.TERRENY'!$K$19*PARÀMETRES!$D$38)/(PI()*'3.TERRENY'!$K$16*'3.TERRENY'!$K$22)))))*COS((2*PI()*(1/PARÀMETRES!$D$38))-('4.CONDUCTES'!$E$26/(SQRT(('3.TERRENY'!$K$19*PARÀMETRES!$D$38)/(PI()*'3.TERRENY'!$K$16*'3.TERRENY'!$K$22))))) -> 14.48296158 | G19: =F19-(F19-D19)*EXP(-((3600*'5.CÀLCUL'!$M$23*PI()*'4.CONDUCTES'!$E$30*'4.CONDUCTES'!$E$28)/(PARÀMETRES!$D$30*PARÀMETRES!$D$31*'5.CÀLCUL'!$H$28))) -> 11.14897463
C20: ANUAL | D20: =SUM(D8:D19)/12 -> 16.41666667 | E20: =SUM(E8:E19)/12 -> 30.50308497 | F20: =SUM(F8:F19)/12 -> 16.41666667 | G20: =SUM(G8:G19)/12 -> 16.41666667

Sheet DITA (hidden)
A2: GAEA
B4: Qw= L · ΔTm · ht
I7: Temperatura del terreny a la paret del conducte
D8: Tg1= Tam + (Tamax-Tam) · e-z cos (2π t/t0 -z) | I8: Temperatura del terreny a la paret del conducte sense influència d'aquesta
I9: t/t0 = fracció de temps en que t/t0=0 per una temperatura ambient màxima
D10: to= | E10: =365*24*60*60 -> 31536000 | F10: s
D11: t: | E11: =24*365*60*60 -> 31536000 | F11: s
D12: x: | E12: 2 | F12: m | H12: Te= | I12: 31
D13: L: | E13: 30 | F13: m | H13: Ta= | I13: =E15+(E14-E15)*COS(2*PI()*(E11/E10)) -> 31 | J13: =E15+(E14-E15)*COS(2*PI()*(K14)) -> 26.83993797 | K13: =COS(2*PI()) -> 1 | M13: =31*24*60*60 -> 2678400 | Q13: Profunditat | R13: pp | S13: Tg | U13: cos
D14: Tmax: | E14: 31 | F14: ºC | H14: z= | I14: =E12*SQRT((PI()*E30*E31)/(E32*E10)) -> 0.8004692455 | J14: =E14-E15 -> 14.58 | K14: =(45/(365)) -> 0.1232876712 | Q14: 0 | R14: =Q14*SQRT((PI()*$E$30*$E$31)/($E$32*$E$10)) -> 0 | S14: =$E$15+($E$14-$E$15)*(EXP(-$R14))*COS((2*PI()*$E$11/$E$10)-R14) -> 31 | T14: =$E$15+($E$14-$E$15)*(EXP(-$R14)) -> 31 | U14: =COS((2*PI()*$E$11/$E$10)-R14) -> 1
D15: Tm: | E15: =16.42 -> 16.42 | F15: ºC | H15: Tg= | I15: =E15+(E14-E15)*(EXP(-I14))*COS((2*PI()*E11/E10)-I14) -> 20.97993037 | Q15: 1 | R15: =Q15*SQRT((PI()*$E$30*$E$31)/($E$32*$E$10)) -> 0.4002346228 | S15: =$E$15+($E$14-$E$15)*(EXP(-$R15))*COS((2*PI()*$E$11/$E$10)-R15) -> 25.41876959 | T15: =$E$15+($E$14-$E$15)*(EXP(-$R15)) -> 26.19097351 | U15: =COS((2*PI()*$E$11/$E$10)-R15) -> 0.9209696022
D16: Tmin: | E16: 1.3 | F16: ºC | Q16: 2 | R16: 0.8004692455 | S16: 20.97993037 | T16: 22.96814289 | U16: 0.6963700165
D17: e: | E17: 0.015 | F17: m | H17: Rcd= | I17: =LN((E19+(2*E17))/E19)*(E19+E17+E17)/(2*E38) -> 0.07863089834 | Q17: 3 | R17: 1.200703868 | S17: 18.00726313 | T17: 20.80832172 | U17: 0.361701632
D18: Rad: | E18: =E19/2 -> 0.15 | F18: m | H18: Rcv= | I18: =(E24*E19*PI()*E13)/I21 -> 0.01514071664 | J18: =E19/(I21*E24) -> 0.2376449601 | Q18: 4 | R18: 1.600938491 | S18: 16.33136863 | T18: 19.36088994 | U18: -0.03013760022
D19: Diam: | E19: 0.3 | F19: m | H19: Rg= | I19: =(LN((E19+2*(E17+K19))/(E19+(2*E17)))*(E19+E17+E17))/(2*E32) -> 0.06420347964 | J19: ɗ= | K19: =SQRT((24*3600*E32)/(PI()*E33*10^6)) -> 0.1307792712 | L19: (dia) | Q19: 5 | R19: 2.001173114 | S19: 15.59772481 | T19: 18.39087501 | U19: -0.4172132594
D20: Volum: | E20: 1200 | F20: m3 | J20: ɗ= | K20: =SQRT((365*24*3600*E32)/(PI()*E33*10^6)) -> 2.498534467 | L20: (any) | Q20: 6 | R20: 2.401407737 | S20: 15.44479019 | T20: 17.7408071 | U20: -0.7383438588
D21: Cabal: | E21: 1200 | F21: m3/h | H21: Nu= | I21: =0.0214*((I22^0.8)-100)*(E26^0.4) -> 48.55336101 | Q21: 7 | R21: 2.801642359 | S21: 15.58550059 | T21: 17.30515577 | U21: -0.9427712406
D22: d: | E22: 1.2 | F22: kg/m3 | H22: Re= | I22: =(E27*E19*E22)/(E25) -> 19480.51948 | Q22: 8 | R22: 3.201876982 | S22: 15.82787911 | T22: 17.01319847 | U22: -0.9981834501
D23: ce: | E23: 1007 | Q23: 9 | R23: 3.602111605 | S23: 16.06387534 | T23: 16.81753954 | U23: -0.8958219894
D24: λ: | E24: 0.026 | H24: Rt= | I24: =J18+I17+I19 -> 0.380479338 | Q24: 10 | R24: 4.002346228 | S24: 16.24633228 | T24: 16.68641621 | U24: -0.6518661924
D25: mu: | E25: 1.848e-05 | H25: Ut= | I25: =1/I24 -> 2.628263614 | Q25: 11 | R25: 4.40258085 | S25: 16.36556678 | T25: 16.59854223 | U25: -0.3048759065
D26: Pr: | E26: 0.71 | Q26: 12 | R26: 4.802815473 | S26: 16.430805 | T26: 16.53965236 | U26: 0.09030330776
D27: v: | E27: 1 | F27: m/s | H27: Qw= | I27: =I28*E13*(I17+I18+I19) -> 0 | Q27: 13 | R27: 5.203050096 | S27: 16.45778464 | T27: 16.50018656 | U27: 0.4712091093
H28: AT= | Q28: 14 | R28: 5.603284719 | S28: 16.4617886 | T28: 16.47373805 | U28: 0.7776352242
D29: Terreny | H29: Ts= | I29: =I15-(I15-I12)*EXP(-I30) -> 29.31190488 | K29: k | L29: =I25 -> 2.628263614 | Q29: 15 | R29: 6.003519342 | S29: 16.45461404 | T29: 16.45601324 | U29: 0.961147697
D30: d: | E30: 1800 | H30: ξ= | I30: =(3600*E19*PI()*E13*I25)/(E21*E22*E23) -> 0.1844895803 | K30: ntu | L30: =(L29*PI()*E19*E13*3600)/(E21*E23*E22) -> 0.1844895803
D31: cp: | E31: 1340 | K31: e | L31: =1-EXP(-L30) -> 0.1684713959
D32: λ: | E32: 1.5 | K32: ts | L32: =I12+L31*(I15-I12) -> 29.31190488
D33: ρc: | E33: =E30*E31/10^6 -> 2.412
D35: Conducte
D36: d: | E36: 1400
D37: ce: | E37: 1500
D38: λ: | E38: 0.2
